{"text_format":"1","workbook":"xlsx","n_sheets":2,"sheets":["CODE","RES"],"not_rendered":{"charts":0,"images":0,"macros":1,"external_links":0,"defined_names":578,"comments":0,"pivot_tables":0},"unopened":[],"bounds":{"document_bytes":16777216,"sheet_cells":100000,"rows_first":2000,"rows_last":500,"rows_between":2000,"halvings":0,"cell_chars":16384,"cell_head_chars":4096},"cells_cut":0,"cells_raw":0,"read":"whole","date_system":"1900"}

{"sheet":"CODE","index":0,"n_rows":0,"n_cols":0,"rows_kept":0,"cut":false,"hidden":false,"merged":[]}

{"sheet":"RES","index":1,"n_rows":278,"n_cols":104,"rows_kept":278,"cut":false,"hidden":false,"merged":[]}
["Excel Analysis ToolPak",null,null,null,null,null,null,null,null,null,null,null,null,null,null,null,null,null,null,null,null,null,"Dialog List",null,"Dialog area","dbAnalysis",null,null,null,null,null,null,null,"dbAnova1",null,null,null,null,null,null,null,"dbRegression",null,null,null,null,null,null,null,"dbOutput",null,null,null,null,null,null,null,"dbCorrelation",null,null,null,null,null,null,null,"dbDescrip",null,null,null,null,null,null,null,"dbExponent",null,null,null,null,null,null,null,"dbFTest",null,null,null,null,null,null,null,"dbSampling",null,null,null,null,null,null,null,"dbRandom"]
["__Longname","'",null,null,null,null,null,null,null,null,null,null,null,null,null,null,null,null,null,null,null,null,null,null,"------>","XLADDIN.CHM!1780",null,null,616,152,"Analiza danych",4,null,"XLADDIN.CHM!1781",null,null,515,223,"Analiza wariancji: jednoczynnikowa",5,null,"XLADDIN.CHM!1802",null,null,546,312,"Regresja",5,null,null,null,null,534,166,0,null,null,"XLADDIN.CHM!1784",null,null,523,191,"Korelacja",5,null,"XLADDIN.CHM!1786",null,null,498,292,"Statystyka opisowa",5,null,"XLADDIN.CHM!1787",null,null,523,195,"Wygładzanie wykładnicze",5,null,"XLADDIN.CHM!1789",null,null,523,203,"Test F: z dwiema próbami dla wariancji",5,null,"XLADDIN.CHM!1803",null,null,523,263,"Próbkowanie",5,null,"XLADDIN.CHM!1794",null,null,516,298,"Generowanie liczb pseudolosowych",4]
[null,null,null,null,null,null,null,null,null,null,null,null,null,null,null,null,null,null,null,null,null,null,{"$f":"dbCorrelationTitle","v":"Korelacja"},null,null,1,514,6,88,null,"OK",null,null,1,412,7,90,null,"OK",null,null,1,443,8,90,null,"OK",null,null,1,418,8,104,null,"OK",null,null,1,407,7,90,null,"OK",null,null,1,387,7,90,null,"OK",null,null,1,407,7,90,null,"OK",null,null,1,407,7,90,null,"OK",null,null,1,407,7,90,null,"OK",null,null,1,410,8,90,null,"OK"]
[null,null,null,null,null,null,null,null,null,null,null,null,null,null,null,null,null,null,null,"USMap","ErrorTitles","ProcMap","uDialogList","Dialog_table","ProcHelps",2,514,30,88,null,"Anuluj",null,null,2,412,30,90,null,"Anuluj",null,null,2,443,31,90,null,"Anuluj",null,null,2,418,33,104,null,"Anuluj",null,null,2,407,30,90,null,"Anuluj",null,null,2,387,30,90,null,"Anuluj",null,null,2,407,30,90,null,"Anuluj",null,null,2,407,30,90,null,"Anuluj",null,null,2,407,30,90,null,"Anuluj",null,null,2,410,31,90,null,"Anuluj"]
[null,null,null,null,null,null,null,null,null,null,null,null,null,null,null,null,null,null,null,0,{"$f":"dbAnova1Title","v":"Analiza wariancji: jednoczynnikowa"},0,{"$f":"dbAnova1Title","v":"Analiza wariancji: jednoczynnikowa"},"dbAnova1","XLADDIN.CHM!1781",5,16,3,null,null,"Narzędzia &analizy:",null,null,14,8,3,388,117,"Wejście",null,null,14,7,4,404,113,"Wejście",null,null,14,7,40,390,121,"Opcje wyjścia",null,null,14,8,3,385,94,"Wejście",null,null,14,8,3,365,95,"Wejście",null,null,14,8,2,385,79,"Wejście",null,null,14,8,3,385,106,"Wejście",null,null,14,8,3,385,58,"Wejście",null,null,5,17,12,null,null,"Liczba &zmiennych:"]
[null,null,null,null,null,null,null,null,null,null,null,null,null,null,null,null,null,null,null,1,{"$f":"dbAnova2Title","v":"Analiza wariancji: dwuczynnikowa z powtórzeniami"},1,{"$f":"dbAnova2Title","v":"Analiza wariancji: dwuczynnikowa z powtórzeniami"},"dbAnova2","XLADDIN.CHM!1782",15,16,19,484,122,"uDialogList",12,null,5,18,19,null,null,"&Zakres wejściowy:",null,null,5,24,22,null,null,"Zakres wejściowy &Y:",null,null,111,null,null,null,null,null,1,null,5,18,19,null,null,"&Zakres wejściowy:",null,null,5,18,19,null,null,"&Zakres wejściowy:",null,null,5,18,19,null,null,"&Zakres wejściowy:",null,null,5,18,19,null,null,"Zakres zmiennej &1:",null,null,5,18,19,null,null,"&Zakres wejściowy:",null,null,7,244,10,150]
[null,null,null,null,null,null,null,null,null,null,null,null,null,null,null,null,null,null,null,2,{"$f":"dbAnova3Title","v":"Analiza wariancji: dwuczynnikowa bez powtórzeń"},2,{"$f":"dbAnova3Title","v":"Analiza wariancji: dwuczynnikowa bez powtórzeń"},"dbAnova3","XLADDIN.CHM!1783",24,514,60,88,null,null,null,null,10,223,16,160,null,null,"",null,10,234,20,160,null,null,"",null,12,18,55,null,null,"&Zastąp dane w zakresie:",null,null,10,220,16,160,null,null,"",null,10,200,16,160,null,null,"",null,10,205,16,160,null,null,"",null,10,220,16,160,null,null,null,null,10,220,16,160,null,null,"",null,5,17,36,null,null,"Liczba &wartości:"]
["mg01s.LetterCol","K",null,null,null,null,null,null,null,null,null,null,null,null,null,null,null,null,null,3,{"$f":"dbCorrelationTitle","v":"Korelacja"},3,{"$f":"dbCorrelationTitle","v":"Korelacja"},"dbCorrelation","XLADDIN.CHM!1784",null,null,null,null,null,null,null,null,5,18,44,null,null,"Grupowanie wg:",null,null,5,24,48,null,null,"Zakres wejściowy &X:",null,null,12,null,90,null,null,"Zapisz w nowym zak&resie:",null,null,5,18,44,null,null,"Grupowanie wg:",null,null,5,18,44,null,null,"Grupowanie wg:",null,null,5,17,40,null,null,"Stała wygładza&nia:",null,null,5,18,41,null,null,"Zakres zmiennej &2:",null,null,13,18,39,null,null,"&Tytuły",false,null,7,244,34,150]
["mg01s.LetterRow","W",null,null,null,null,null,null,null,null,null,null,null,null,null,null,null,null,null,4,{"$f":"dbCovarianceTitle","v":"Kowariancja"},4,{"$f":"dbCovarianceTitle","v":"Kowariancja"},"dbCovariance","XLADDIN.CHM!1785",null,null,null,null,null,null,null,null,111,null,null,null,null,null,1,null,10,234,46,160,null,null,"",null,12,null,110,null,null,"Nowa &warstwa arkusza:",null,null,111,null,null,null,null,null,1,null,111,null,null,null,null,null,1,null,8,205,38,68,null,null,null,null,10,220,39,160,null,null,null,null,14,8,65,385,105,"Metoda próbkowania",null,null,5,17,63,null,null,"Roz&kład:"]
["mLabelInColumn","&Tytuły w pierwszej kolumnie",null,null,null,null,null,null,null,null,null,null,null,null,null,null,null,null,null,5,{"$f":"dbDescripTitle","v":"Statystyka opisowa"},5,{"$f":"dbDescripTitle","v":"Statystyka opisowa"},"dbDescrip","XLADDIN.CHM!1786",null,null,null,null,null,null,null,null,12,223,40,null,null,"&Kolumn",null,null,13,25,75,null,null,"&Tytuły",false,null,12,null,130,null,null,"Nowy &skoroszyt",null,null,12,220,40,null,null,"&Kolumn",null,null,12,200,40,null,null,"&Kolumn",null,null,13,17,60,null,null,"&Tytuły",false,null,13,18,64,null,null,"&Tytuły",false,null,111,null,null,null,null,null,2,null,121,186,61,208,84,"dbRandomList",7]
["mLabelInRow","&Tytuły w pierwszym wierszu",null,null,null,null,null,null,null,null,null,null,null,null,null,null,null,null,null,6,{"$f":"dbExponentTitle","v":"Wygładzanie wykładnicze"},6,{"$f":"dbExponentTitle","v":"Wygładzanie wykładnicze"},"dbExponent","XLADDIN.CHM!1787",null,null,null,null,null,null,null,null,12,null,null,null,null,"&Wierszy",null,null,13,197,75,null,null,"Stała wynosi &Zero",false,null,5,8,7,375,30,"Zapisywanie informacji w niepustych komórkach: dane mogą być utracone!",null,null,12,null,null,null,null,"&Wierszy",null,null,12,null,null,null,null,"&Wierszy",null,null,14,8,83,385,100,"Opcje wyjścia",null,null,5,18,85,null,null,"&Alfa:",null,null,12,18,82,null,null,"&Okresowa",null,null,14,9,85,405,92,"Parametry"]
["mg01s.SampP","O",null,null,null,null,null,null,null,null,null,null,null,null,null,null,null,null,null,7,{"$f":"dbFTestTitle","v":"Test F: z dwiema próbami dla wariancji"},7,{"$f":"dbFTestTitle","v":"Test F: z dwiema próbami dla wariancji"},"dbFTest","XLADDIN.CHM!1789",null,null,null,null,null,null,null,null,13,20,75,null,null,"&Tytuły w pierwszym wierszu",false,null,113,25,93,null,null,"Poziom &ufności:",false,null,5,43,73,233,16,"R1C1",null,null,13,20,75,null,null,"&Tytuły w pierwszym wierszu",false,null,13,18,75,null,null,"&Tytuły w pierwszym wierszu",false,null,5,null,null,null,null,null,1,null,8,76,83,68,null,null,0.05,null,12,null,125,null,null,"&Losowa",null,null,5,null,null,null,null,null,"dbDiscrete"]
["mg01s.SampR","L",null,null,null,null,null,null,null,null,null,null,null,null,null,null,null,null,null,8,{"$f":"dbFourierTitle","v":"Analiza Fouriera"},8,{"$f":"dbFourierTitle","v":"Analiza Fouriera"},"dbFourier","XLADDIN.CHM!1788",null,null,null,null,null,null,null,null,5,21,97,null,null,"&Alfa:",null,null,208,197,93,56,null,null,95,null,210,223,88,160,null,null,"R1C1",null,14,8,104,385,81,"Opcje wyjścia",null,null,14,8,109,365,174,"Opcje wyjścia",null,null,5,17,99,null,null,"Zakr&es wyjściowy:",null,null,14,8,116,385,81,"Opcje wyjścia",null,null,5,42,103,null,null,"Okres:",null,null,5]
["mg01s.Date","Daty i czasu",null,null,null,null,null,null,null,null,null,null,null,null,null,null,null,null,null,9,{"$f":"dbHistogramTitle","v":"Histogram"},9,{"$f":"dbHistogramTitle","v":"Histogram"},"dbHistogram","XLADDIN.CHM!1790",null,null,null,null,null,null,null,null,8,76,95,68,null,null,0.05,null,5,258,96,null,null,"%",null,null,210,223,108,160,null,null,null,null,111,null,null,null,null,null,2,null,111,null,null,null,null,null,2,null,205,null,119,null,null,"Nowy a&rkusz:",null,null,111,null,null,null,null,null,2,null,207,220,99,128,null,null,null,null,5]
["mg01s.Info","Informacyjne",null,null,null,null,null,null,null,null,null,null,null,null,null,null,null,null,null,10,{"$f":"dbMovingTitle","v":"Średnia ruchoma"},10,{"$f":"dbMovingTitle","v":"Średnia ruchoma"},"dbMoving","XLADDIN.CHM!1791",null,null,null,null,null,null,null,null,14,8,129,388,86,"Opcje wyjścia",null,null,14,7,124,524,179,"Opcje wyjścia",null,null,24,418,66,104,null,"Pomoc",null,null,12,20,120,null,null,"Zakr&es wyjściowy:",null,null,12,18,126,null,null,"Zakr&es wyjściowy:",null,null,205,null,139,null,null,"Nowy &skoroszyt",null,null,12,18,132,null,null,"Zakr&es wyjściowy:",null,null,5,42,146,null,null,"Liczba prób:",null,null,5]
["mg01s.Math","Matematyczne",null,null,null,null,null,null,null,null,null,null,null,null,null,null,null,null,null,11,{"$f":"dbRandomTitle","v":"Generowanie liczb pseudolosowych"},11,{"$f":"dbRandomTitle","v":"Generowanie liczb pseudolosowych"},"dbRandom","XLADDIN.CHM!1794",null,null,null,null,null,null,null,null,111,null,null,null,null,null,2,null,111,null,null,null,null,null,2,null,null,null,null,null,null,null,null,null,12,null,140,null,null,"Nowy a&rkusz:",null,null,12,null,146,null,null,"Nowy a&rkusz:",null,null,10,205,97,160,null,null,"",null,12,null,152,null,null,"Nowy a&rkusz:",null,null,7,220,142,128,null,null,null,null,5]
["mg01s.Stat","Statystyczne",null,null,null,null,null,null,null,null,null,null,null,null,null,null,null,null,null,12,{"$f":"dbRankPerTitle","v":"Ranga i percentyl"},12,{"$f":"dbRankPerTitle","v":"Ranga i percentyl"},"dbRankPer","XLADDIN.CHM!1801",null,null,null,null,null,null,null,null,12,20,149,null,null,"Zakr&es wyjściowy:",null,null,12,24,142,null,null,"Zakr&es wyjściowy:",null,null,null,null,null,null,null,null,null,null,12,null,160,null,null,"Nowy &skoroszyt",null,null,12,null,166,null,null,"Nowy &skoroszyt",null,null,206,205,117,160,null,null,null,null,12,null,172,null,null,"Nowy &skoroszyt",null,null,14,8,174,385,81,"Opcje wyjścia",null,null,5]
["mg01s.Fin","Finansowe",null,null,null,null,null,null,null,null,null,null,null,null,null,null,null,null,null,13,{"$f":"dbRegressionTitle","v":"Regresja"},13,{"$f":"dbRegressionTitle","v":"Regresja"},"dbRegression","XLADDIN.CHM!1802",null,null,null,null,null,null,null,null,12,null,169,null,null,"Nowy a&rkusz:",null,null,12,null,162,null,null,"Nowy a&rkusz:",null,null,null,null,null,null,null,null,null,null,210,220,118,160,null,null,"",null,210,200,124,160,null,null,"",null,13,17,161,null,null,"&Wykres wyjściowy",false,null,210,220,130,160,null,null,null,null,111,null,null,null,null,null,2,null,5]
["mg01s.Eng","Inżynierskie",null,null,null,null,null,null,null,null,null,null,null,null,null,null,null,null,null,14,{"$f":"dbSamplingTitle","v":"Próbkowanie"},14,{"$f":"dbSamplingTitle","v":"Próbkowanie"},"dbSampling","XLADDIN.CHM!1803",null,null,null,null,null,null,null,null,12,null,189,null,null,"Nowy &skoroszyt",null,null,12,null,182,null,null,"Nowy &skoroszyt",null,null,null,null,null,null,null,null,null,null,6,220,138,160,null,null,null,null,6,200,144,160,null,null,null,null,13,205,161,null,null,"&Błędy standardowe",false,null,6,220,150,160,null,null,null,null,12,18,190,null,null,"Zakr&es wyjściowy:",null,null,5]
["mg01s.Analysis","Analiza danych",null,null,null,null,null,null,null,null,null,null,null,null,null,null,null,null,null,15,{"$f":"dbTTest1Title","v":"Test t: par skojarzonych z dwiema próbami dla średniej"},15,{"$f":"dbTTest1Title","v":"Test t: par skojarzonych z dwiema próbami dla średniej"},"dbTTest1","XLADDIN.CHM!1792",null,null,null,null,null,null,null,null,210,223,147,160,null,null,"",null,210,234,140,160,null,null,"",null,null,null,null,null,null,null,null,null,24,407,57,90,null,null,null,null,13,18,188,null,null,"Statystyki po&dsumowujące",false,null,24,407,57,90,null,null,null,null,24,407,57,90,null,null,null,null,12,null,210,null,null,"Nowy a&rkusz:",null,null,5]
["mg01s.Anova","Analiza wariancji",null,null,null,null,null,null,null,null,null,null,null,null,null,null,null,null,null,16,{"$f":"dbTTest2Title","v":"Test t: z dwiema próbami zakładający równe wariancje"},16,{"$f":"dbTTest2Title","v":"Test t: z dwiema próbami zakładający równe wariancje"},"dbTTest2","XLADDIN.CHM!1804",null,null,null,null,null,null,null,null,6,223,167,160,null,null,null,null,6,234,160,160,null,null,null,null,null,null,null,null,null,null,null,null,null,null,null,null,null,null,null,null,113,18,211,null,null,"Poziom &ufności dla średniej:",false,null,null,null,null,null,null,null,null,null,null,null,null,null,null,null,null,null,12,null,230,null,null,"Nowy &skoroszyt",null,null,5]
["mg01s.ANSingleFact","Analiza wariancji: jednoczynnikowa",null,null,null,null,null,null,null,null,null,null,null,null,null,null,null,null,null,17,{"$f":"dbTTest3Title","v":"Test t: z dwiema próbami zakładający nierówne wariancje"},17,{"$f":"dbTTest3Title","v":"Test t: z dwiema próbami zakładający nierówne wariancje"},"dbTTest3","XLADDIN.CHM!1793",null,null,null,null,null,null,null,null,24,412,57,90,null,null,null,null,14,15,202,506,53,"Składniki resztowe",null,null,null,null,null,null,null,null,null,null,"dbCovariance",null,null,null,null,null,null,null,208,240,209,60,null,null,95,null,null,null,null,null,null,null,null,null,null,null,null,null,null,null,null,null,210,220,188,160,null,null,"",null,5,22,106,null,null,"Z&akres wejściowy wartości i prawdopodobieństwa:"]
["mg01s.ANTwoFactWi","Analiza wariancji: dwuczynnikowa z powtórzeniami",null,null,null,null,null,null,null,null,null,null,null,null,null,null,null,null,null,18,{"$f":"dbZTestTitle","v":"Test z: z dwiema próbami dla średnich"},18,{"$f":"dbZTestTitle","v":"Test z: z dwiema próbami dla średnich"},"dbZTest","XLADDIN.CHM!1805",null,null,null,null,null,null,null,null,null,null,null,null,null,null,null,null,13,null,216,null,null,"S&kładniki resztowe",false,null,null,null,null,null,null,null,null,null,"XLADDIN.CHM!1785",null,null,523,191,"Kowariancja",5,null,5,305,211,null,null,"%",null,null,null,null,null,null,null,null,null,null,null,null,null,null,null,null,null,null,6,220,208,160,null,null,null,null,10,21,123,381]
["mg01s.ANTwoFactWo","Analiza wariancji: dwuczynnikowa bez powtórzeń",null,null,null,null,null,null,null,null,null,null,null,null,null,null,null,null,null,null,null,null,null,"dbUniform",null,null,null,null,null,null,null,null,null,null,null,null,null,null,null,null,null,13,null,231,null,null,"St&d. składniki resztowe",false,null,null,null,null,null,null,null,null,null,1,407,7,90,null,"OK",null,null,113,18,234,null,null,"K-ta &największa:",false,null,null,null,null,null,null,null,null,null,"dbTTest1",null,null,null,null,null,null,null,24,407,57,90,null,null,null,null,5,17,187,null,null,"Rozrz&ut:"]
["mg01s.Summary","PODSUMOWANIE",null,null,null,null,null,null,null,null,null,null,null,null,null,null,null,null,null,null,null,null,null,"dbNormal",null,null,null,null,null,null,null,null,null,"dbAnova2",null,null,null,null,null,null,null,13,270,216,null,null,"R&ozkład reszt",false,null,null,null,null,null,null,null,null,null,2,407,30,90,null,"Anuluj",null,null,207,200,232,100,null,null,1,null,null,null,null,null,null,null,null,null,"XLADDIN.CHM!1792",null,null,550,227,"Test t: par skojarzonych z dwiema próbami dla średniej",5,null,null,null,null,null,null,null,null,null,7,220,185,160,null,null,""]
["mg01s.Groups","Grupy",null,null,null,null,null,null,null,null,null,null,null,null,null,null,null,null,null,null,null,null,null,"dbBernoulli",null,null,null,null,null,null,null,null,null,"XLADDIN.CHM!1782",null,null,509,187,"Analiza wariancji: dwuczynnikowa z powtórzeniami",5,null,13,null,231,null,null,"Rozkład &linii dopasowanej",false,null,null,null,null,null,null,null,null,null,14,8,3,385,94,"Wejście",null,null,113,18,258,null,null,"K-ta naj&mniejsza:",false,null,null,null,null,null,null,null,null,null,1,440,7,90,null,"OK",null,null,null,null,null,null,null,null,null,null,14,9,209,385,81,"Opcje wyjścia"]
["mg01s.Count","Licznik",null,null,null,null,null,null,null,null,null,null,null,null,null,null,null,null,null,null,null,null,null,"dbBinomial",null,null,null,null,null,null,null,null,null,1,407,7,90,null,"OK",null,null,14,15,258,506,35,"Rozkład normalny",null,null,null,null,null,null,null,null,null,null,5,18,19,null,null,"&Zakres wejściowy:",null,null,207,200,256,100,null,null,1,null,null,null,null,null,null,null,null,null,2,440,30,90,null,"Anuluj",null,null,null,null,null,null,null,null,null,null,111,220,null,null,null,null,2]
["mg01s.Sum","Suma",null,null,null,null,null,null,null,null,null,null,null,null,null,null,null,null,null,null,null,null,null,"dbPoisson",null,null,null,null,null,null,null,null,null,2,407,30,90,null,"Anuluj",null,null,13,null,270,null,null,"Rozkład prawdopodobieństwa &normalnego",false,null,null,null,null,null,null,null,null,null,10,220,16,160,null,null,"",null,24,387,57,90,null,null,null,null,null,null,null,null,null,null,null,null,14,8,3,405,132,"Wejście",null,null,null,null,null,null,null,null,null,null,12,17,225,null,null,"Zakr&es wyjściowy:"]
["mg01s.Average","Średnia",null,null,null,null,null,null,null,null,null,null,null,null,null,null,null,null,null,null,null,null,null,"dbPatterned",null,null,null,null,null,null,null,null,null,14,8,3,382,89,"Wejście",null,null,24,443,64,90,null,null,null,null,null,null,null,null,null,null,null,null,5,18,44,null,null,"Grupowanie wg:",null,null,null,null,null,null,null,null,null,null,null,null,null,null,null,null,null,null,5,17,18,null,null,"Zakres zmiennej &1:",null,null,null,null,null,null,null,null,null,null,12,null,245,null,null,"Nowy a&rkusz:"]
["mg01s.Variance","Wariancja",null,null,null,null,null,null,null,null,null,null,null,null,null,null,null,null,null,null,null,null,null,"dbDiscrete",null,null,null,null,null,null,null,null,null,5,20,19,null,null,"&Zakres wejściowy:",null,null,null,null,null,null,null,null,null,null,null,null,null,null,null,null,null,null,111,null,null,null,null,null,1,null,null,null,null,null,null,null,null,null,null,null,null,null,null,null,null,null,10,220,16,178,null,null,"",null,null,null,null,null,null,null,null,null,12,null,265,null,null,"Nowy &skoroszyt"]
["mg02s.ANOVA","ANALIZA WARIANCJI",null,null,null,null,null,null,null,null,null,null,null,null,null,null,null,null,null,null,null,null,null,"dbAnalysis",null,null,null,null,null,null,null,null,null,10,218,16,160,null,null,"",null,null,null,null,null,null,null,null,null,null,null,null,null,null,null,null,null,12,220,40,null,null,"&Kolumn",null,null,null,null,null,null,null,null,null,null,null,null,null,null,null,null,null,null,5,17,41,null,null,"Zakres zmiennej &2:",null,null,null,null,null,null,null,null,null,null,210,220,223,160,null,null,""]
["mg01s.SrcVar","Źródło wariancji",null,null,null,null,null,null,null,null,null,null,null,null,null,null,null,null,null,null,null,null,null,null,null,null,null,null,null,null,null,null,null,5,20,45,null,null,"&Wiersze w próbie:",null,null,null,null,null,null,null,null,null,null,null,null,null,null,null,null,null,null,12,null,null,null,null,"&Wierszy",null,null,null,null,null,null,null,null,null,null,null,null,null,null,null,null,null,null,10,220,39,178,null,null,"",null,null,null,null,null,null,null,null,null,6,220,243,160]
["mg01s.SS","SS",null,null,null,null,null,null,null,null,null,null,null,null,null,null,null,null,null,null,null,null,null,null,null,null,null,null,null,null,null,null,null,7,218,42,69,null,null,null,null,null,null,null,null,null,null,null,null,null,null,null,null,null,null,null,null,13,18,75,null,null,"&Tytuły w pierwszym wierszu",false,null,null,null,null,null,null,null,null,null,null,null,null,null,null,null,null,null,5,17,70,null,null,"Różnica średnich wg &hipotezy:",null,null,null,null,null,null,null,null,null,null,24,410,60,90]
["mg01s.DF","df",null,null,null,null,null,null,null,null,null,null,null,null,null,null,null,null,null,null,null,null,null,null,null,null,null,null,null,null,null,null,null,5,20,68,null,null,"&Alfa:",null,null,null,null,null,null,null,null,null,null,null,null,null,null,null,null,null,null,14,8,104,385,81,"Opcje wyjscia",null,null,null,null,null,null,null,null,null,null,null,null,null,null,null,null,null,null,8,307,68,89]
["mg01s.MS","MS",null,null,null,null,null,null,null,null,null,null,null,null,null,null,null,null,null,null,null,null,null,null,null,null,null,null,null,null,null,null,null,8,218,66,68,null,null,0.05,null,null,null,null,null,null,null,null,null,null,null,null,null,null,null,null,null,111,null,null,null,null,null,2,null,null,null,null,null,null,null,null,null,null,null,null,null,null,null,null,null,13,17,90,null,null,"&Tytuły",false,null,null,null,null,null,null,null,null,null,"dbUniform"]
["mg01s.F","F",null,null,null,null,null,null,null,null,null,null,null,null,null,null,null,null,null,null,null,null,null,null,null,null,null,null,null,null,null,null,null,14,8,97,382,82,"Opcje wyjścia",null,null,null,null,null,null,null,null,null,null,null,null,null,null,null,null,null,null,12,18,120,null,null,"Zakr&es wyjściowy:",null,null,null,null,null,null,null,null,null,null,null,null,null,null,null,null,null,null,5,17,114,null,null,"&Alfa:",null,null,null,null,null,null,null,null,null,null,5,null,null,null,null,null,"dbUniform"]
["mg01s.PVal","Wartość-p",null,null,null,null,null,null,null,null,null,null,null,null,null,null,null,null,null,null,null,null,null,null,null,null,null,null,null,null,null,null,null,111,null,null,null,null,null,2,null,null,null,null,null,null,null,null,null,null,null,null,null,null,null,null,null,12,null,140,null,null,"Nowy a&rkusz:",null,null,null,null,null,null,null,null,null,null,null,null,null,null,null,null,null,null,8,72,112,63,null,null,0.05,null,null,null,null,null,null,null,null,null,5]
["mg01s.FCrit","Test F",null,null,null,null,null,null,null,null,null,null,null,null,null,null,null,null,null,null,null,null,null,null,null,null,null,null,null,null,null,null,null,12,20,115,null,null,"Zakr&es wyjściowy:",null,null,null,null,null,null,null,null,null,null,null,null,null,null,null,null,null,null,12,null,160,null,null,"Nowy &skoroszyt",null,null,null,null,null,null,null,null,null,null,null,null,null,null,null,null,null,null,14,8,140,405,81,"Opcje wyjścia",null,null,null,null,null,null,null,null,null,null,5]
["mg01s.Total","Razem",null,null,null,null,null,null,null,null,null,null,null,null,null,null,null,null,null,null,null,null,null,null,null,null,null,null,null,null,null,null,null,12,null,135,null,null,"Nowy a&rkusz:",null,null,null,null,null,null,null,null,null,null,null,null,null,null,null,null,null,null,210,220,118,160,null,null,"",null,null,null,null,null,null,null,null,null,null,null,null,null,null,null,null,null,111,null,null,null,null,null,2,null,null,null,null,null,null,null,null,null,5]
["mg01s.BetweenGrp","Pomiędzy grupami",null,null,null,null,null,null,null,null,null,null,null,null,null,null,null,null,null,null,null,null,null,null,null,null,null,null,null,null,null,null,null,12,null,155,null,null,"Nowy &skoroszyt",null,null,null,null,null,null,null,null,null,null,null,null,null,null,null,null,null,null,6,220,138,160,null,null,null,null,null,null,null,null,null,null,null,null,null,null,null,null,null,null,null,null,12,17,156,null,null,"Zakr&es wyjściowy:",null,null,null,null,null,null,null,null,null,null,5]
["mg01s.WithinGrp","W obrębie grup",null,null,null,null,null,null,null,null,null,null,null,null,null,null,null,null,null,null,null,null,null,null,null,null,null,null,null,null,null,null,null,210,218,113,160,null,null,"",null,null,null,null,null,null,null,null,null,null,null,null,null,null,null,null,null,24,407,57,90,null,null,null,null,null,null,null,null,null,null,null,null,null,null,null,null,null,null,null,null,12,null,176,null,null,"Nowy a&rkusz:",null,null,null,null,null,null,null,null,null,null,5]
["mg01s.Sample","Próbka",null,null,null,null,null,null,null,null,null,null,null,null,null,null,null,null,null,null,null,null,null,null,null,null,null,null,null,null,null,null,null,6,218,133,160,null,null,null,null,null,null,null,null,null,null,null,null,null,null,null,null,null,null,null,null,null,null,null,null,null,null,null,null,null,null,null,null,null,null,null,null,null,null,null,null,null,null,null,null,12,null,196,null,null,"Nowy &skoroszyt",null,null,null,null,null,null,null,null,null,null,5]
["mg01s.Column","Kolumna",null,null,null,null,null,null,null,null,null,null,null,null,null,null,null,null,null,null,null,null,null,null,null,null,null,null,null,null,null,null,null,24,407,57,90,null,null,null,null,null,null,null,null,null,null,null,null,null,null,null,null,null,null,null,null,"dbRankPer",null,null,null,null,null,null,null,null,null,null,null,null,null,null,null,null,null,null,null,null,null,null,null,210,220,154,177,null,null,"",null,null,null,null,null,null,null,null,null,5]
["mg01s.Interaction","Interakcja",null,null,null,null,null,null,null,null,null,null,null,null,null,null,null,null,null,null,null,null,null,null,null,null,null,null,null,null,null,null,null,null,null,null,null,null,null,null,null,null,null,null,null,null,null,null,null,null,null,null,null,null,null,null,null,"XLADDIN.CHM!1801",null,null,523,191,"Ranga i percentyl",5,null,null,null,null,null,null,null,null,null,null,null,null,null,null,null,null,null,6,220,174,177,null,null,null,null,null,null,null,null,null,null,null,null,5,25,114,null,null,"&Pomiędzy"]
["mg01s.Within","W obrębie",null,null,null,null,null,null,null,null,null,null,null,null,null,null,null,null,null,null,null,null,null,null,null,null,null,null,null,null,null,null,null,null,null,null,null,null,null,null,null,null,null,null,null,null,null,null,null,null,null,null,null,null,null,null,null,1,407,7,90,null,"OK",null,null,null,null,null,null,null,null,null,null,null,null,null,null,null,null,null,null,24,440,57,90,null,null,null,null,null,null,null,null,null,null,null,null,8,108,112,60,null,null,0]
["mg01s.Rows","Wiersze",null,null,null,null,null,null,null,null,null,null,null,null,null,null,null,null,null,null,null,null,null,null,null,null,null,null,null,null,null,null,null,null,null,null,null,null,null,null,null,null,null,null,null,null,null,null,null,null,null,null,null,null,null,null,null,2,407,30,90,null,"Anuluj",null,null,null,null,null,null,null,null,null,null,null,null,null,null,null,null,null,null,null,null,null,null,null,null,null,null,null,null,null,null,null,null,null,null,5,182,114,null,null,"or&az"]
["mg01s.Columns","Kolumny",null,null,null,null,null,null,null,null,null,null,null,null,null,null,null,null,null,null,null,null,null,null,null,null,null,null,null,null,null,null,null,"dbAnova3",null,null,null,null,null,null,null,null,null,null,null,null,null,null,null,null,null,null,null,null,null,null,null,14,8,3,385,94,"Wejście",null,null,null,null,null,null,null,null,null,null,null,null,null,null,null,null,null,null,null,null,null,null,null,null,null,null,null,null,null,null,null,null,null,null,8,225,112,60,null,null,1]
["mg01s.Error","Błąd",null,null,null,null,null,null,null,null,null,null,null,null,null,null,null,null,null,null,null,null,null,null,null,null,null,null,null,null,null,null,null,"XLADDIN.CHM!1783",null,null,523,185,"Analiza wariancji: dwuczynnikowa bez powtórzeń",5,null,null,null,null,null,null,null,null,null,null,null,null,null,null,null,null,null,5,18,19,null,null,"&Zakres wejściowy:"]
["mg01s.Descr","Statystyka opisowa",null,null,null,null,null,null,null,null,null,null,null,null,null,null,null,null,null,null,null,null,null,null,null,null,null,null,null,null,null,null,null,1,407,7,90,null,"OK",null,null,null,null,null,null,null,null,null,null,null,null,null,null,null,null,null,null,10,220,16,160,null,null,"",null,null,null,null,null,null,null,null,null,null,null,null,null,null,null,null,null,"dbTTest2",null,null,null,null,null,null,null,null,null,null,null,null,null,null,null,"dbPatterned"]
["mg01s.Mean","Średnia",null,null,null,null,null,null,null,null,null,null,null,null,null,null,null,null,null,null,null,null,null,null,null,null,null,null,null,null,null,null,null,2,407,30,90,null,"Anuluj",null,null,null,null,null,null,null,null,null,null,null,null,null,null,null,null,null,null,5,18,44,null,null,"Grupowanie wg:",null,null,null,null,null,null,null,null,null,null,null,null,null,null,null,null,null,null,"XLADDIN.CHM!1804",null,null,550,227,"Test t: z dwiema próbami zakładający równe wariancje",5,null,null,null,null,null,null,null,null,null,5,17,101,null,null,"&Od","dbPatterned"]
["mg01s.StdErr","Błąd standardowy",null,null,null,null,null,null,null,null,null,null,null,null,null,null,null,null,null,null,null,null,null,null,null,null,null,null,null,null,null,null,null,14,8,3,385,83,"Wejście",null,null,null,null,null,null,null,null,null,null,null,null,null,null,null,null,null,null,111,null,null,null,null,null,1,null,null,null,null,null,null,null,null,null,null,null,null,null,null,null,null,null,1,440,7,90,null,"OK",null,null,null,null,null,null,null,null,null,null,8,56,99,60]
["mg01s.Median","Mediana",null,null,null,null,null,null,null,null,null,null,null,null,null,null,null,null,null,null,null,null,null,null,null,null,null,null,null,null,null,null,null,5,18,19,null,null,"&Zakres wejściowy:",null,null,null,null,null,null,null,null,null,null,null,null,null,null,null,null,null,null,12,220,40,null,null,"&Kolumn",null,null,null,null,null,null,null,null,null,null,null,null,null,null,null,null,null,null,2,440,30,90,null,"Anuluj",null,null,null,null,null,null,null,null,null,null,5,125,101,null,null,"&do"]
["mg01s.Mode","Tryb",null,null,null,null,null,null,null,null,null,null,null,null,null,null,null,null,null,null,null,null,null,null,null,null,null,null,null,null,null,null,null,10,222,16,160,null,null,"",null,null,null,null,null,null,null,null,null,null,null,null,null,null,null,null,null,12,null,null,null,null,"&Wierszy",null,null,null,null,null,null,null,null,null,null,null,null,null,null,null,null,null,null,14,8,3,405,132,"Wejście",null,null,null,null,null,null,null,null,null,null,8,156,99,60]
["mg01s.StdDev","Odchylenie standardowe",null,null,null,null,null,null,null,null,null,null,null,null,null,null,null,null,null,null,null,null,null,null,null,null,null,null,null,null,null,null,null,13,19,41,null,null,"&Tytuły",false,null,null,null,null,null,null,null,null,null,null,null,null,null,null,null,null,null,13,18,75,null,null,"&Tytuły w pierwszym wierszu",false,null,null,null,null,null,null,null,null,null,null,null,null,null,null,null,null,null,5,17,18,null,null,"Zakres zmiennej &1:",null,null,null,null,null,null,null,null,null,null,5,232,101,null,null,"z krokie&m"]
["mg01s.SampleVar","Wariancja próbki",null,null,null,null,null,null,null,null,null,null,null,null,null,null,null,null,null,null,null,null,null,null,null,null,null,null,null,null,null,null,null,5,20,62,null,null,"&Alfa:",null,null,null,null,null,null,null,null,null,null,null,null,null,null,null,null,null,null,14,8,104,385,81,"Opcje wyjścia",null,null,null,null,null,null,null,null,null,null,null,null,null,null,null,null,null,null,10,220,16,178,null,null,"",null,null,null,null,null,null,null,null,null,8,325,99,60]
["mg01s.Kurtosis","Kurtoza",null,null,null,null,null,null,null,null,null,null,null,null,null,null,null,null,null,null,null,null,null,null,null,null,null,null,null,null,null,null,null,8,75,60,68,null,null,0.05,null,null,null,null,null,null,null,null,null,null,null,null,null,null,null,null,null,111,null,null,null,null,null,2,null,null,null,null,null,null,null,null,null,null,null,null,null,null,null,null,null,5,17,41,null,null,"Zakres zmiennej &2:",null,null,null,null,null,null,null,null,null,null,5,17,131,null,null,"powtarzając każdą &liczbę"]
["mg01s.Skewness","Skośność",null,null,null,null,null,null,null,null,null,null,null,null,null,null,null,null,null,null,null,null,null,null,null,null,null,null,null,null,null,null,null,14,8,91,385,86,"Opcje wyjścia",null,null,null,null,null,null,null,null,null,null,null,null,null,null,null,null,null,null,12,18,120,null,null,"Zakr&es wyjściowy:",null,null,null,null,null,null,null,null,null,null,null,null,null,null,null,null,null,null,10,220,39,178,null,null,"",null,null,null,null,null,null,null,null,null,7,220,129,60]
["mg01s.Range","Zakres",null,null,null,null,null,null,null,null,null,null,null,null,null,null,null,null,null,null,null,null,null,null,null,null,null,null,null,null,null,null,null,111,null,null,null,null,null,2,null,null,null,null,null,null,null,null,null,null,null,null,null,null,null,null,null,12,null,140,null,null,"Nowy a&rkusz:",null,null,null,null,null,null,null,null,null,null,null,null,null,null,null,null,null,null,5,17,70,null,null,"Różnica średnich wg &hipotezy:",null,null,null,null,null,null,null,null,null,null,5,295,131,null,null,"razy"]
["mg01s.Min","Minimum",null,null,null,null,null,null,null,null,null,null,null,null,null,null,null,null,null,null,null,null,null,null,null,null,null,null,null,null,null,null,null,12,20,107,null,null,"Zakr&es wyjściowy:",null,null,null,null,null,null,null,null,null,null,null,null,null,null,null,null,null,null,12,null,160,null,null,"Nowy &skoroszyt",null,null,null,null,null,null,null,null,null,null,null,null,null,null,null,null,null,null,8,307,68,89,null,null,null,null,null,null,null,null,null,null,null,null,5,17,153,null,null,"powtarzając sekwe&ncję"]
["mg01s.Max","Maksimum",null,null,null,null,null,null,null,null,null,null,null,null,null,null,null,null,null,null,null,null,null,null,null,null,null,null,null,null,null,null,null,12,null,127,null,null,"Nowy a&rkusz:",null,null,null,null,null,null,null,null,null,null,null,null,null,null,null,null,null,null,210,220,118,160,null,null,"",null,null,null,null,null,null,null,null,null,null,null,null,null,null,null,null,null,13,17,90,null,null,"&Tytuły",false,null,null,null,null,null,null,null,null,null,7,220,151,60]
["mg01s.Largest","Największy",null,null,null,null,null,null,null,null,null,null,null,null,null,null,null,null,null,null,null,null,null,null,null,null,null,null,null,null,null,null,null,12,null,147,null,null,"Nowy &skoroszyt",null,null,null,null,null,null,null,null,null,null,null,null,null,null,null,null,null,null,6,220,138,160,null,null,null,null,null,null,null,null,null,null,null,null,null,null,null,null,null,null,null,null,5,17,114,null,null,"&Alfa:",null,null,null,null,null,null,null,null,null,null,5,295,153,null,null,"razy"]
["mg01s.Smallest","Najmniejszy",null,null,null,null,null,null,null,null,null,null,null,null,null,null,null,null,null,null,null,null,null,null,null,null,null,null,null,null,null,null,null,210,222,105,160,null,null,"",null,null,null,null,null,null,null,null,null,null,null,null,null,null,null,null,null,24,407,57,90,null,null,null,null,null,null,null,null,null,null,null,null,null,null,null,null,null,null,null,null,8,72,112,63,null,null,0.05]
["mg01s.ConfLvl","Poziom ufności",null,null,null,null,null,null,null,null,null,null,null,null,null,null,null,null,null,null,null,null,null,null,null,null,null,null,null,null,null,null,null,6,222,125,160,null,null,null,null,null,null,null,null,null,null,null,null,null,null,null,null,null,null,null,null,null,null,null,null,null,null,null,null,null,null,null,null,null,null,null,null,null,null,null,null,null,null,null,null,14,8,140,405,81,"Opcje wyjścia",null,null,null,null,null,null,null,null,null,null,"dbNormal"]
["mg01s.Correl","Korelacja",null,null,null,null,null,null,null,null,null,null,null,null,null,null,null,null,null,null,null,null,null,null,null,null,null,null,null,null,null,null,null,24,407,57,90,null,null,null,null,null,null,null,null,null,null,null,null,null,null,null,null,null,null,null,null,null,null,null,null,null,null,null,null,null,null,null,null,null,null,null,null,null,null,null,null,null,null,null,null,111,null,null,null,null,null,2,null,null,null,null,null,null,null,null,null,5,null,null,null,null,null,"dbNormal"]
["mg01s.Covar","Kowariancja",null,null,null,null,null,null,null,null,null,null,null,null,null,null,null,null,null,null,null,null,null,null,null,null,null,null,null,null,null,null,null,null,null,null,null,null,null,null,null,null,null,null,null,null,null,null,null,null,null,null,null,null,null,null,null,null,null,null,null,null,null,null,null,null,null,null,null,null,null,null,null,null,null,null,null,null,null,null,null,12,17,156,null,null,"Zakr&es wyjściowy:",null,null,null,null,null,null,null,null,null,null,5]
["mg01s.ExpSmth","Wygładzanie wykładnicze",null,null,null,null,null,null,null,null,null,null,null,null,null,null,null,null,null,null,null,null,null,null,null,null,null,null,null,null,null,null,null,null,null,null,null,null,null,null,null,null,null,null,null,null,null,null,null,null,null,null,null,null,null,null,null,"dbFourier",null,null,null,null,null,null,null,null,null,null,null,null,null,null,null,null,null,null,null,null,null,null,null,12,null,176,null,null,"Nowy a&rkusz:",null,null,null,null,null,null,null,null,null,null,5]
["mg01s.MovAvg","Średnia ruchoma",null,null,null,null,null,null,null,null,null,null,null,null,null,null,null,null,null,null,null,null,null,null,null,null,null,null,null,null,null,null,null,null,null,null,null,null,null,null,null,null,null,null,null,null,null,null,null,null,null,null,null,null,null,null,null,"XLADDIN.CHM!1788",null,null,523,181,"Analiza Fouriera",5,null,null,null,null,null,null,null,null,null,null,null,null,null,null,null,null,null,12,null,196,null,null,"Nowy &skoroszyt",null,null,null,null,null,null,null,null,null,null,5]
["mg01s.Actual","Wartość bieżąca",null,null,null,null,null,null,null,null,null,null,null,null,null,null,null,null,null,null,null,null,null,null,null,null,null,null,null,null,null,null,null,"dbMoving",null,null,null,null,null,null,null,null,null,null,null,null,null,null,null,null,null,null,null,null,null,null,null,1,407,7,90,null,"OK",null,null,null,null,null,null,null,null,null,null,null,null,null,null,null,null,null,null,210,220,154,177,null,null,"",null,null,null,null,null,null,null,null,null,5]
["mg01s.Forecast","Prognoza",null,null,null,null,null,null,null,null,null,null,null,null,null,null,null,null,null,null,null,null,null,null,null,null,null,null,null,null,null,null,null,"XLADDIN.CHM!1791",null,null,523,205,"Średnia ruchoma",5,null,null,null,null,null,null,null,null,null,null,null,null,null,null,null,null,null,2,407,30,90,null,"Anuluj",null,null,null,null,null,null,null,null,null,null,null,null,null,null,null,null,null,null,6,220,174,177,null,null,null,null,null,null,null,null,null,null,null,null,5]
["mg01s.DataPoint","Punkt danych",null,null,null,null,null,null,null,null,null,null,null,null,null,null,null,null,null,null,null,null,null,null,null,null,null,null,null,null,null,null,null,1,407,7,90,null,"OK",null,null,null,null,null,null,null,null,null,null,null,null,null,null,null,null,null,null,14,8,4,385,59,"Wejście",null,null,null,null,null,null,null,null,null,null,null,null,null,null,null,null,null,null,24,440,57,90,null,null,null,null,null,null,null,null,null,null,null,null,5]
["mg01s.Value","Wartość",null,null,null,null,null,null,null,null,null,null,null,null,null,null,null,null,null,null,null,null,null,null,null,null,null,null,null,null,null,null,null,2,407,30,90,null,"Anuluj",null,null,null,null,null,null,null,null,null,null,null,null,null,null,null,null,null,null,5,18,19,null,null,"&Zakres wejściowy:",null,null,null,null,null,null,null,null,null,null,null,null,null,null,null,null,null,null,null,null,null,null,null,null,null,null,null,null,null,null,null,null,null,null,5]
["mg01s.Histogram","Histogram",null,null,null,null,null,null,null,null,null,null,null,null,null,null,null,null,null,null,null,null,null,null,null,null,null,null,null,null,null,null,null,14,8,3,385,93,"Wejście",null,null,null,null,null,null,null,null,null,null,null,null,null,null,null,null,null,null,10,220,16,160,null,null,"",null,null,null,null,null,null,null,null,null,null,null,null,null,null,null,null,null,null,null,null,null,null,null,null,null,null,null,null,null,null,null,null,null,5,24,111,null,null,"Śre&dnia ="]
["mg01s.Bin","Zbiór danych (koszyk)",null,null,null,null,null,null,null,null,null,null,null,null,null,null,null,null,null,null,null,null,null,null,null,null,null,null,null,null,null,null,null,5,18,19,null,null,"&Zakres wejściowy:",null,null,null,null,null,null,null,null,null,null,null,null,null,null,null,null,null,null,13,18,40,null,null,"&Tytuły w pierwszym wierszu",false,null,null,null,null,null,null,null,null,null,null,null,null,null,null,null,null,null,null,null,null,null,null,null,null,null,null,null,null,null,null,null,null,null,8,234,109,60,null,null,0]
["mg01s.Freq","Częstość",null,null,null,null,null,null,null,null,null,null,null,null,null,null,null,null,null,null,null,null,null,null,null,null,null,null,null,null,null,null,null,10,205,16,160,null,null,"",null,null,null,null,null,null,null,null,null,null,null,null,null,null,null,null,null,14,8,70,385,104,"Opcje wyjścia",null,null,null,null,null,null,null,null,null,null,null,null,null,null,null,null,null,null,"dbTTest3",null,null,null,null,null,null,null,null,null,null,null,null,null,null,null,5,24,134,null,null,"Odc&hylenie standardowe ="]
["mg01s.CumPer","Łączna wartość %",null,null,null,null,null,null,null,null,null,null,null,null,null,null,null,null,null,null,null,null,null,null,null,null,null,null,null,null,null,null,null,13,18,41,null,null,"&Tytuły w pierwszym wierszu",false,null,null,null,null,null,null,null,null,null,null,null,null,null,null,null,null,null,111,null,null,null,null,null,2,null,null,null,null,null,null,null,null,null,null,null,null,null,null,null,null,null,"XLADDIN.CHM!1793",null,null,550,223,"Test t: z dwiema próbami zakładający nierówne wariancje",5,null,null,null,null,null,null,null,null,null,8,234,132,60,null,null,1]
["mg01s.More","Więcej",null,null,null,null,null,null,null,null,null,null,null,null,null,null,null,null,null,null,null,null,null,null,null,null,null,null,null,null,null,null,null,5,18,69,null,null,"&Odstęp:",null,null,null,null,null,null,null,null,null,null,null,null,null,null,null,null,null,null,12,18,86,null,null,"Zakr&es wyjściowy:",null,null,null,null,null,null,null,null,null,null,null,null,null,null,null,null,null,null,1,440,7,90,null,"OK"]
["mg01s.Fourier","Analiza Fouriera",null,null,null,null,null,null,null,null,null,null,null,null,null,null,null,null,null,null,null,null,null,null,null,null,null,null,null,null,null,null,null,7,205,66,69,null,null,null,null,null,null,null,null,null,null,null,null,null,null,null,null,null,null,null,null,12,null,106,null,null,"Nowy a&rkusz:",null,null,null,null,null,null,null,null,null,null,null,null,null,null,null,null,null,null,2,440,30,90,null,"Anuluj",null,null,null,null,null,null,null,null,null,null,"dbBernoulli"]
["mg01s.FTTwoVar","Test F: z dwiema próbami dla wariancji",null,null,null,null,null,null,null,null,null,null,null,null,null,null,null,null,null,null,null,null,null,null,null,null,null,null,null,null,null,null,null,14,8,96,385,105,"Opcje wyjścia",null,null,null,null,null,null,null,null,null,null,null,null,null,null,null,null,null,null,12,null,126,null,null,"Nowy &skoroszyt",null,null,null,null,null,null,null,null,null,null,null,null,null,null,null,null,null,null,14,8,3,405,128,"Wejście",null,null,null,null,null,null,null,null,null,null,5,null,null,null,null,null,"dbBernoulli"]
["mg01s.TTEqVar","Test t: z dwiema próbami zakładający równe wariancje",null,null,null,null,null,null,null,null,null,null,null,null,null,null,null,null,null,null,null,null,null,null,null,null,null,null,null,null,null,null,null,5,null,null,null,null,null,1,null,null,null,null,null,null,null,null,null,null,null,null,null,null,null,null,null,210,220,84,160,null,null,"",null,null,null,null,null,null,null,null,null,null,null,null,null,null,null,null,null,5,17,18,null,null,"Zakres zmiennej &1:",null,null,null,null,null,null,null,null,null,null,5]
["mg01s.TTPaired","Test t: z dwiema próbami dla średnich",null,null,null,null,null,null,null,null,null,null,null,null,null,null,null,null,null,null,null,null,null,null,null,null,null,null,null,null,null,null,null,5,18,112,null,null,"Zakr&es wyjściowy:",null,null,null,null,null,null,null,null,null,null,null,null,null,null,null,null,null,null,6,220,104,160,null,null,null,null,null,null,null,null,null,null,null,null,null,null,null,null,null,null,null,null,10,220,16,178,null,null,null,null,null,null,null,null,null,null,null,null,5]
["mg01s.TTUEqVar","Test t: z dwiema próbami zakładający nierówne wariancje",null,null,null,null,null,null,null,null,null,null,null,null,null,null,null,null,null,null,null,null,null,null,null,null,null,null,null,null,null,null,null,205,null,132,null,null,"Nowy a&rkusz:",null,null,null,null,null,null,null,null,null,null,null,null,null,null,null,null,null,null,13,18,151,null,null,"&Odwrotna transformacja",false,null,null,null,null,null,null,null,null,null,null,null,null,null,null,null,null,null,5,17,41,null,null,"Zakres zmiennej &2:",null,null,null,null,null,null,null,null,null,null,5]
["mg01s.Obs","Obserwacje",null,null,null,null,null,null,null,null,null,null,null,null,null,null,null,null,null,null,null,null,null,null,null,null,null,null,null,null,null,null,null,205,null,152,null,null,"Nowy &skoroszyt",null,null,null,null,null,null,null,null,null,null,null,null,null,null,null,null,null,null,24,407,57,90,null,null,null,null,null,null,null,null,null,null,null,null,null,null,null,null,null,null,null,null,10,220,39,178,null,null,null,null,null,null,null,null,null,null,null,null,5]
["mg01s.F1Tail","P(F<=f) jednostronny",null,null,null,null,null,null,null,null,null,null,null,null,null,null,null,null,null,null,null,null,null,null,null,null,null,null,null,null,null,null,null,10,205,110,160,null,null,"",null,null,null,null,null,null,null,null,null,null,null,null,null,null,null,null,null,null,null,null,null,null,null,null,null,null,null,null,null,null,null,null,null,null,null,null,null,null,null,null,null,5,17,68,null,null,"Różnica średnich wg &hipotezy:",null,null,null,null,null,null,null,null,null,null,5]
["mg01s.FCrit1","Test F jednostronny",null,null,null,null,null,null,null,null,null,null,null,null,null,null,null,null,null,null,null,null,null,null,null,null,null,null,null,null,null,null,null,206,205,130,160,null,null,null,null,null,null,null,null,null,null,null,null,null,null,null,null,null,null,null,null,null,null,null,null,null,null,null,null,null,null,null,null,null,null,null,null,null,null,null,null,null,null,null,null,8,307,66,89,null,null,null,null,null,null,null,null,null,null,null,null,5]
["mg01s.MeanDif","Różnica średnich wg hipotezy",null,null,null,null,null,null,null,null,null,null,null,null,null,null,null,null,null,null,null,null,null,null,null,null,null,null,null,null,null,null,null,13,18,175,null,null,"&Wykres wyjściowy",false,null,null,null,null,null,null,null,null,null,null,null,null,null,null,null,null,null,null,null,null,null,null,null,null,null,null,null,null,null,null,null,null,null,null,null,null,null,null,null,null,null,13,18,87,null,null,"&Tytuły",false,null,null,null,null,null,null,null,null,null,5]
["mg01s.PoolVar","Wariancja sumaryczna",null,null,null,null,null,null,null,null,null,null,null,null,null,null,null,null,null,null,null,null,null,null,null,null,null,null,null,null,null,null,null,13,205,175,null,null,"&Błędy standardowe",false,null,null,null,null,null,null,null,null,null,null,null,null,null,null,null,null,null,"dBHistogram",null,null,null,null,null,5,null,null,null,null,null,null,null,null,null,null,null,null,null,null,null,null,null,5,18,108,null,null,"&Alfa:",null,null,null,null,null,null,null,null,null,null,5]
["mg01s.PearCorrel","Korelacja Pearsona",null,null,null,null,null,null,null,null,null,null,null,null,null,null,null,null,null,null,null,null,null,null,null,null,null,null,null,null,null,null,null,24,407,57,90,null,null,null,null,null,null,null,null,null,null,null,null,null,null,null,null,null,null,null,null,"XLADDIN.CHM!1790",null,null,523,241,"Histogram",5,null,null,null,null,null,null,null,null,null,null,null,null,null,null,null,null,null,8,73,105,63,null,null,0.05,null,null,null,null,null,null,null,null,null,5]
["mg01s.PT1Tail","P(T<=t) jednostronny",null,null,null,null,null,null,null,null,null,null,null,null,null,null,null,null,null,null,null,null,null,null,null,null,null,null,null,null,null,null,null,null,null,null,null,null,null,null,null,null,null,null,null,null,null,null,null,null,null,null,null,null,null,null,null,1,407,7,90,null,"OK",null,null,null,null,null,null,null,null,null,null,null,null,null,null,null,null,null,null,14,8,136,405,81,"Opcje wyjścia",null,null,null,null,null,null,null,null,null,null,5,26,108,null,null,"W&artość p ="]
["mg01s.PT2Tail","P(T<=t) dwustronny",null,null,null,null,null,null,null,null,null,null,null,null,null,null,null,null,null,null,null,null,null,null,null,null,null,null,null,null,null,null,null,null,null,null,null,null,null,null,null,null,null,null,null,null,null,null,null,null,null,null,null,null,null,null,null,2,407,30,90,null,"Anuluj",null,null,null,null,null,null,null,null,null,null,null,null,null,null,null,null,null,null,111,null,null,null,null,null,2,null,null,null,null,null,null,null,null,null,8,134,106,60]
["mg01s.tStat","t Stat",null,null,null,null,null,null,null,null,null,null,null,null,null,null,null,null,null,null,null,null,null,null,null,null,null,null,null,null,null,null,null,null,null,null,null,null,null,null,null,null,null,null,null,null,null,null,null,null,null,null,null,null,null,null,null,14,8,3,385,86,"Wejście",null,null,null,null,null,null,null,null,null,null,null,null,null,null,null,null,null,null,12,17,152,null,null,"Zakr&es wyjściowy:"]
["mg01s.TCrit1","Test T jednostronny",null,null,null,null,null,null,null,null,null,null,null,null,null,null,null,null,null,null,null,null,null,null,null,null,null,null,null,null,null,null,null,null,null,null,null,null,null,null,null,null,null,null,null,null,null,null,null,null,null,null,null,null,null,null,null,5,18,19,null,null,"&Zakres komórek:",null,null,null,null,null,null,null,null,null,null,null,null,null,null,null,null,null,null,12,null,172,null,null,"Nowy a&rkusz:",null,null,null,null,null,null,null,null,null,null,"dbBinomial"]
["mg01s.TCrit2","Test t dwustronny",null,null,null,null,null,null,null,null,null,null,null,null,null,null,null,null,null,null,null,null,null,null,null,null,null,null,null,null,null,null,null,null,null,null,null,null,null,null,null,null,null,null,null,null,null,null,null,null,null,null,null,null,null,null,null,10,220,16,160,null,null,"",null,null,null,null,null,null,null,null,null,null,null,null,null,null,null,null,null,12,null,192,null,null,"Nowy &skoroszyt",null,null,null,null,null,null,null,null,null,null,5,null,null,null,null,null,"dbBinomial"]
["mg01s.Variable1","Zmienna 1",null,null,null,null,null,null,null,null,null,null,null,null,null,null,null,null,null,null,null,null,null,null,null,null,null,null,null,null,null,null,null,null,null,null,null,null,null,null,null,null,null,null,null,null,null,null,null,null,null,null,null,null,null,null,null,5,18,43,null,null,"Zakres z&bioru:",null,null,null,null,null,null,null,null,null,null,null,null,null,null,null,null,null,null,210,220,150,177,null,null,null,null,null,null,null,null,null,null,null,null,5]
["mg01s.Variable2","Zmienna 2",null,null,null,null,null,null,null,null,null,null,null,null,null,null,null,null,null,null,null,null,null,null,null,null,null,null,null,null,null,null,null,null,null,null,null,null,null,null,null,null,null,null,null,null,null,null,null,null,null,null,null,null,null,null,null,10,220,40,160,null,null,"",null,null,null,null,null,null,null,null,null,null,null,null,null,null,null,null,null,6,220,172,177,null,null,null,null,null,null,null,null,null,null,null,null,5]
["mg01s.ZTest","Test z: z dwiema próbami dla średnich",null,null,null,null,null,null,null,null,null,null,null,null,null,null,null,null,null,null,null,null,null,null,null,null,null,null,null,null,null,null,null,null,null,null,null,null,null,null,null,null,null,null,null,null,null,null,null,null,null,null,null,null,null,null,null,13,18,66,null,null,"&Tytuły",false,null,null,null,null,null,null,null,null,null,null,null,null,null,null,null,null,null,24,440,57,90,null,null,null,null,null,null,null,null,null,null,null,null,5]
["mg01s.KnownVar","Znana wariancja",null,null,null,null,null,null,null,null,null,null,null,null,null,null,null,null,null,null,null,null,null,null,null,null,null,null,null,null,null,null,null,null,null,null,null,null,null,null,null,null,null,null,null,null,null,null,null,null,null,null,null,null,null,null,null,14,8,96,385,135,"Opcje wyjścia",null,null,null,null,null,null,null,null,null,null,null,null,null,null,null,null,null,null,null,null,null,null,null,null,null,null,null,null,null,null,null,null,null,null,5]
["mg01s.Z","z",null,null,null,null,null,null,null,null,null,null,null,null,null,null,null,null,null,null,null,null,null,null,null,null,null,null,null,null,null,null,null,null,null,null,null,null,null,null,null,null,null,null,null,null,null,null,null,null,null,null,null,null,null,null,null,111,null,null,null,null,null,2,null,null,null,null,null,null,null,null,null,null,null,null,null,null,null,null,null,null,null,null,null,null,null,null,null,null,null,null,null,null,null,null,null,5]
["mg01s.Z1Tail","P(Z<=z) jednostronny",null,null,null,null,null,null,null,null,null,null,null,null,null,null,null,null,null,null,null,null,null,null,null,null,null,null,null,null,null,null,null,null,null,null,null,null,null,null,null,null,null,null,null,null,null,null,null,null,null,null,null,null,null,null,null,12,18,112,null,null,"Zakr&es wyjściowy:",null,null,null,null,null,null,null,null,null,null,null,null,null,null,null,null,null,null,null,null,null,null,null,null,null,null,null,null,null,null,null,null,null,null,5]
["mg01s.ZCrit1","Test z jednostronny",null,null,null,null,null,null,null,null,null,null,null,null,null,null,null,null,null,null,null,null,null,null,null,null,null,null,null,null,null,null,null,null,null,null,null,null,null,null,null,null,null,null,null,null,null,null,null,null,null,null,null,null,null,null,null,12,null,132,null,null,"Nowy a&rkusz:",null,null,null,null,null,null,null,null,null,null,null,null,null,null,null,null,null,null,"dbZTest",null,null,null,null,null,null,null,null,null,null,null,null,null,null,null,5]
["mg01s.Z2Tail","P(Z<=z) jednostronny",null,null,null,null,null,null,null,null,null,null,null,null,null,null,null,null,null,null,null,null,null,null,null,null,null,null,null,null,null,null,null,null,null,null,null,null,null,null,null,null,null,null,null,null,null,null,null,null,null,null,null,null,null,null,null,12,null,152,null,null,"Nowy &skoroszyt",null,null,null,null,null,null,null,null,null,null,null,null,null,null,null,null,null,null,"XLADDIN.CHM!1805",null,null,577,281,"Test z: z dwiema próbami dla średnich",5,null,null,null,null,null,null,null,null,null,5,23,131,null,null,"&Liczba prób ="]
["mg01s.ZCrit2","Test z dwustronny",null,null,null,null,null,null,null,null,null,null,null,null,null,null,null,null,null,null,null,null,null,null,null,null,null,null,null,null,null,null,null,null,null,null,null,null,null,null,null,null,null,null,null,null,null,null,null,null,null,null,null,null,null,null,null,210,220,110,160,null,null,"",null,null,null,null,null,null,null,null,null,null,null,null,null,null,null,null,null,1,474,7,90,null,"OK",null,null,null,null,null,null,null,null,null,null,7,140,128,60]
["mg01s.RankPer","Ranga i percentyl",null,null,null,null,null,null,null,null,null,null,null,null,null,null,null,null,null,null,null,null,null,null,null,null,null,null,null,null,null,null,null,null,null,null,null,null,null,null,null,null,null,null,null,null,null,null,null,null,null,null,null,null,null,null,null,6,220,130,160,null,null,null,null,null,null,null,null,null,null,null,null,null,null,null,null,null,null,null,null,2,474,30,90,null,"Anuluj",null,null,null,null,null,null,null,null,null,null,5,25,108,null,null,"W&artość p ="]
["mg01s.Rank","Ranga",null,null,null,null,null,null,null,null,null,null,null,null,null,null,null,null,null,null,null,null,null,null,null,null,null,null,null,null,null,null,null,null,null,null,null,null,null,null,null,null,null,null,null,null,null,null,null,null,null,null,null,null,null,null,null,13,18,174,null,null,"&Pareto (posortowany histogram)",false,null,null,null,null,null,null,null,null,null,null,null,null,null,null,null,null,null,14,8,3,422,186,"Wejście",null,null,null,null,null,null,null,null,null,null,8,140,105,60]
["mg01s.Percent","Percentyl",null,null,null,null,null,null,null,null,null,null,null,null,null,null,null,null,null,null,null,null,null,null,null,null,null,null,null,null,null,null,null,null,null,null,null,null,null,null,null,null,null,null,null,null,null,null,null,null,null,null,null,null,null,null,null,13,null,null,null,null,"Łącz&ny udział procentowy",false,null,null,null,null,null,null,null,null,null,null,null,null,null,null,null,null,null,5,17,18,null,null,"Zakres zmiennej &1:"]
["mg01s.Point","Punkt",null,null,null,null,null,null,null,null,null,null,null,null,null,null,null,null,null,null,null,null,null,null,null,null,null,null,null,null,null,null,null,null,null,null,null,null,null,null,null,null,null,null,null,null,null,null,null,null,null,null,null,null,null,null,null,13,null,null,null,null,"&Wykres wyjściowy",false,null,null,null,null,null,null,null,null,null,null,null,null,null,null,null,null,null,10,222,16,192,null,null,"",null,null,null,null,null,null,null,null,null,"dbPoisson"]
["mg01s.Row","Wiersz",null,null,null,null,null,null,null,null,null,null,null,null,null,null,null,null,null,null,null,null,null,null,null,null,null,null,null,null,null,null,null,null,null,null,null,null,null,null,null,null,null,null,null,null,null,null,null,null,null,null,null,null,null,null,null,24,407,57,90,null,null,null,null,null,null,null,null,null,null,null,null,null,null,null,null,null,null,null,null,5,17,41,null,null,"Zakres zmiennej &2:",null,null,null,null,null,null,null,null,null,null,5,null,null,null,null,null,"dbPoisson"]
["mg01s.RandNum","Generowanie liczb pseudolosowych",null,null,null,null,null,null,null,null,null,null,null,null,null,null,null,null,null,null,null,null,null,null,null,null,null,null,null,null,null,null,null,null,null,null,null,null,null,null,null,null,null,null,null,null,null,null,null,null,null,null,null,null,null,null,null,null,null,null,null,null,null,null,null,null,null,null,null,null,null,null,null,null,null,null,null,null,null,null,null,10,222,39,192,null,null,"",null,null,null,null,null,null,null,null,null,5]
["mg01s.RandUniform","Jednostajny",null,null,null,null,null,null,null,null,null,null,null,null,null,null,null,null,null,null,null,null,null,null,null,null,null,null,null,null,null,null,null,null,null,null,null,null,null,null,null,null,null,null,null,null,null,null,null,null,null,null,null,null,null,null,null,null,null,null,null,null,null,null,null,null,null,null,null,null,null,null,null,null,null,null,null,null,null,null,null,5,17,68,null,null,"Różnica średnich wg &hipotezy:",null,null,null,null,null,null,null,null,null,null,5]
["mg01s.RandNormal","Normalny",null,null,null,null,null,null,null,null,null,null,null,null,null,null,null,null,null,null,null,null,null,null,null,null,null,null,null,null,null,null,null,null,null,null,null,null,null,null,null,null,null,null,null,null,null,null,null,null,null,null,null,null,null,null,null,null,null,null,null,null,null,null,null,null,null,null,null,null,null,null,null,null,null,null,null,null,null,null,null,8,260,66,153,null,null,null,null,null,null,null,null,null,null,null,null,5]
["mg01s.RandBernoulli","Bernoulliego",null,null,null,null,null,null,null,null,null,null,null,null,null,null,null,null,null,null,null,null,null,null,null,null,null,null,null,null,null,null,null,null,null,null,null,null,null,null,null,null,null,null,null,null,null,null,null,null,null,null,null,null,null,null,null,null,null,null,null,null,null,null,null,null,null,null,null,null,null,null,null,null,null,null,null,null,null,null,null,5,17,95,null,null,"&Wariancja zmiennej 1 (znana):",null,null,null,null,null,null,null,null,null,null,5]
["mg01s.RandBinomial","Dwumianowy",null,null,null,null,null,null,null,null,null,null,null,null,null,null,null,null,null,null,null,null,null,null,null,null,null,null,null,null,null,null,null,null,null,null,null,null,null,null,null,null,null,null,null,null,null,null,null,null,null,null,null,null,null,null,null,null,null,null,null,null,null,null,null,null,null,null,null,null,null,null,null,null,null,null,null,null,null,null,null,8,260,93,153,null,null,null,null,null,null,null,null,null,null,null,null,5]
["mg01s.RandPoisson","Poissona",null,null,null,null,null,null,null,null,null,null,null,null,null,null,null,null,null,null,null,null,null,null,null,null,null,null,null,null,null,null,null,null,null,null,null,null,null,null,null,null,null,null,null,null,null,null,null,null,null,null,null,null,null,null,null,null,null,null,null,null,null,null,null,null,null,null,null,null,null,null,null,null,null,null,null,null,null,null,null,5,17,119,null,null,"Waria&ncja zmiennej 2 (znana):",null,null,null,null,null,null,null,null,null,null,5]
["mg01s.RandPatterned","Wg wzorca",null,null,null,null,null,null,null,null,null,null,null,null,null,null,null,null,null,null,null,null,null,null,null,null,null,null,null,null,null,null,null,null,null,null,null,null,null,null,null,null,null,null,null,null,null,null,null,null,null,null,null,null,null,null,null,null,null,null,null,null,null,null,null,null,null,null,null,null,null,null,null,null,null,null,null,null,null,null,null,8,259,117,153,null,null,null,null,null,null,null,null,null,null,null,null,5]
["mg01s.RandDiscrete","Dyskretny",null,null,null,null,null,null,null,null,null,null,null,null,null,null,null,null,null,null,null,null,null,null,null,null,null,null,null,null,null,null,null,null,null,null,null,null,null,null,null,null,null,null,null,null,null,null,null,null,null,null,null,null,null,null,null,null,null,null,null,null,null,null,null,null,null,null,null,null,null,null,null,null,null,null,null,null,null,null,null,13,17,143,null,null,"&Tytuły",false,null,null,null,null,null,null,null,null,null,5]
["mg01s.Regression","Regresja",null,null,null,null,null,null,null,null,null,null,null,null,null,null,null,null,null,null,null,null,null,null,null,null,null,null,null,null,null,null,null,null,null,null,null,null,null,null,null,null,null,null,null,null,null,null,null,null,null,null,null,null,null,null,null,null,null,null,null,null,null,null,null,null,null,null,null,null,null,null,null,null,null,null,null,null,null,null,null,5,17,168,null,null,"&Alfa:",null,null,null,null,null,null,null,null,null,null,5]
["mg01s.ResiOut","SKŁADNIKI RESZTOWE - WYJŚCIE",null,null,null,null,null,null,null,null,null,null,null,null,null,null,null,null,null,null,null,null,null,null,null,null,null,null,null,null,null,null,null,null,null,null,null,null,null,null,null,null,null,null,null,null,null,null,null,null,null,null,null,null,null,null,null,null,null,null,null,null,null,null,null,null,null,null,null,null,null,null,null,null,null,null,null,null,null,null,null,8,72,166,63,null,null,0.05,null,null,null,null,null,null,null,null,null,5,25,107,null,null,"&Lambda ="]
["mg01s.Ob","Obserwacja",null,null,null,null,null,null,null,null,null,null,null,null,null,null,null,null,null,null,null,null,null,null,null,null,null,null,null,null,null,null,null,null,null,null,null,null,null,null,null,null,null,null,null,null,null,null,null,null,null,null,null,null,null,null,null,null,null,null,null,null,null,null,null,null,null,null,null,null,null,null,null,null,null,null,null,null,null,null,null,14,8,195,422,81,"Opcje wyjścia",null,null,null,null,null,null,null,null,null,null,8,142,102,60,18]
["mg01s.Predicted","Przewidywane",null,null,null,null,null,null,null,null,null,null,null,null,null,null,null,null,null,null,null,null,null,null,null,null,null,null,null,null,null,null,null,null,null,null,null,null,null,null,null,null,null,null,null,null,null,null,null,null,null,null,null,null,null,null,null,null,null,null,null,null,null,null,null,null,null,null,null,null,null,null,null,null,null,null,null,null,null,null,null,111,null,null,null,null,null,2]
["mg01s.PredictedY","Przewidywane Y",null,null,null,null,null,null,null,null,null,null,null,null,null,null,null,null,null,null,null,null,null,null,null,null,null,null,null,null,null,null,null,null,null,null,null,null,null,null,null,null,null,null,null,null,null,null,null,null,null,null,null,null,null,null,null,null,null,null,null,null,null,null,null,null,null,null,null,null,null,null,null,null,null,null,null,null,null,null,null,12,17,211,null,null,"Zakr&es wyjściowy:",null,null,null,null,null,null,null,null,null,null,"dbDiscrete"]
["mg01s.StdResid","Std. składniki resztowe",null,null,null,null,null,null,null,null,null,null,null,null,null,null,null,null,null,null,null,null,null,null,null,null,null,null,null,null,null,null,null,null,null,null,null,null,null,null,null,null,null,null,null,null,null,null,null,null,null,null,null,null,null,null,null,null,null,null,null,null,null,null,null,null,null,null,null,null,null,null,null,null,null,null,null,null,null,null,null,12,null,231,null,null,"Nowy a&rkusz:",null,null,null,null,null,null,null,null,null,null,5,null,null,null,null,null,"dbDiscrete"]
["mg01s.ProbOut","PRAWDOPODOBIEŃSTWO - WYJŚCIE",null,null,null,null,null,null,null,null,null,null,null,null,null,null,null,null,null,null,null,null,null,null,null,null,null,null,null,null,null,null,null,null,null,null,null,null,null,null,null,null,null,null,null,null,null,null,null,null,null,null,null,null,null,null,null,null,null,null,null,null,null,null,null,null,null,null,null,null,null,null,null,null,null,null,null,null,null,null,null,12,null,251,null,null,"Nowy &skoroszyt",null,null,null,null,null,null,null,null,null,null,5]
["mg01s.Percentile","Percentyl",null,null,null,null,null,null,null,null,null,null,null,null,null,null,null,null,null,null,null,null,null,null,null,null,null,null,null,null,null,null,null,null,null,null,null,null,null,null,null,null,null,null,null,null,null,null,null,null,null,null,null,null,null,null,null,null,null,null,null,null,null,null,null,null,null,null,null,null,null,null,null,null,null,null,null,null,null,null,null,210,222,209,192,null,null,"",null,null,null,null,null,null,null,null,null,5]
["mg01s.Y","Y",null,null,null,null,null,null,null,null,null,null,null,null,null,null,null,null,null,null,null,null,null,null,null,null,null,null,null,null,null,null,null,null,null,null,null,null,null,null,null,null,null,null,null,null,null,null,null,null,null,null,null,null,null,null,null,null,null,null,null,null,null,null,null,null,null,null,null,null,null,null,null,null,null,null,null,null,null,null,null,6,222,229,192,null,null,null,null,null,null,null,null,null,null,null,null,5]
["mg01s.SumOut","PODSUMOWANIE - WYJŚCIE",null,null,null,null,null,null,null,null,null,null,null,null,null,null,null,null,null,null,null,null,null,null,null,null,null,null,null,null,null,null,null,null,null,null,null,null,null,null,null,null,null,null,null,null,null,null,null,null,null,null,null,null,null,null,null,null,null,null,null,null,null,null,null,null,null,null,null,null,null,null,null,null,null,null,null,null,null,null,null,24,474,57,90,null,null,null,null,null,null,null,null,null,null,null,null,5]
["mg01s.RegressStat","Statystyki regresji",null,null,null,null,null,null,null,null,null,null,null,null,null,null,null,null,null,null,null,null,null,null,null,null,null,null,null,null,null,null,null,null,null,null,null,null,null,null,null,null,null,null,null,null,null,null,null,null,null,null,null,null,null,null,null,null,null,null,null,null,null,null,null,null,null,null,null,null,null,null,null,null,null,null,null,null,null,null,null,null,null,null,null,null,null,null,null,null,null,null,null,null,null,null,null,5]
["mg01s.MultipleR","Wielokrotność R",null,null,null,null,null,null,null,null,null,null,null,null,null,null,null,null,null,null,null,null,null,null,null,null,null,null,null,null,null,null,null,null,null,null,null,null,null,null,null,null,null,null,null,null,null,null,null,null,null,null,null,null,null,null,null,null,null,null,null,null,null,null,null,null,null,null,null,null,null,null,null,null,null,null,null,null,null,null,null,null,null,null,null,null,null,null,null,null,null,null,null,null,null,null,null,5]
["mg01s.RSquare","R kwadrat",null,null,null,null,null,null,null,null,null,null,null,null,null,null,null,null,null,null,null,null,null,null,null,null,null,null,null,null,null,null,null,null,null,null,null,null,null,null,null,null,null,null,null,null,null,null,null,null,null,null,null,null,null,null,null,null,null,null,null,null,null,null,null,null,null,null,null,null,null,null,null,null,null,null,null,null,null,null,null,null,null,null,null,null,null,null,null,null,null,null,null,null,null,null,null,5]
["mg01s.AdjSq","Dopasowany R kwadrat",null,null,null,null,null,null,null,null,null,null,null,null,null,null,null,null,null,null,null,null,null,null,null,null,null,null,null,null,null,null,null,null,null,null,null,null,null,null,null,null,null,null,null,null,null,null,null,null,null,null,null,null,null,null,null,null,null,null,null,null,null,null,null,null,null,null,null,null,null,null,null,null,null,null,null,null,null,null,null,null,null,null,null,null,null,null,null,null,null,null,null,null,null,null,null,5]
["mg01s.Resid","Resztkowy",null,null,null,null,null,null,null,null,null,null,null,null,null,null,null,null,null,null,null,null,null,null,null,null,null,null,null,null,null,null,null,null,null,null,null,null,null,null,null,null,null,null,null,null,null,null,null,null,null,null,null,null,null,null,null,null,null,null,null,null,null,null,null,null,null,null,null,null,null,null,null,null,null,null,null,null,null,null,null,null,null,null,null,null,null,null,null,null,null,null,null,null,null,null,null,5]
["mg01s.SigniF","Istotność F",null,null,null,null,null,null,null,null,null,null,null,null,null,null,null,null,null,null,null,null,null,null,null,null,null,null,null,null,null,null,null,null,null,null,null,null,null,null,null,null,null,null,null,null,null,null,null,null,null,null,null,null,null,null,null,null,null,null,null,null,null,null,null,null,null,null,null,null,null,null,null,null,null,null,null,null,null,null,null,null,null,null,null,null,null,null,null,null,null,null,null,null,null,null,null,5,23,107,null,null,"Value and probability &input range:"]
["mg01s.Intercept","Przecięcie",null,null,null,null,null,null,null,null,null,null,null,null,null,null,null,null,null,null,null,null,null,null,null,null,null,null,null,null,null,null,null,null,null,null,null,null,null,null,null,null,null,null,null,null,null,null,null,null,null,null,null,null,null,null,null,null,null,null,null,null,null,null,null,null,null,null,null,null,null,null,null,null,null,null,null,null,null,null,null,null,null,null,null,null,null,null,null,null,null,null,null,null,null,null,null,10,21,123,279,null,null,""]
["mg01s.Lower","Dolne"]
["mg01s.Lower95","Dolne 95%"]
["mg01s.Upper","Górne",null,null,null,null,null,null,null,null,null,null,null,null,null,null,null,null,null,null,null,null,null,null,null,null,null,null,null,null,null,null,null,null,null,null,null,null,null,null,null,null,null,null,null,null,null,null,null,null,null,null,null,null,null,null,null,null,null,null,null,null,null,null,null,null,null,null,null,null,null,null,null,null,null,null,null,null,null,null,null,null,null,null,null,null,null,null,null,null,null,null,null,null,null,null,null,"InitRandomDb"]
["mg01s.Upper95","Górne 95%",null,null,null,null,null,null,null,null,null,null,null,null,null,null,null,null,null,null,null,null,null,null,null,null,null,null,null,null,null,null,null,null,null,null,null,null,null,null,null,null,null,null,null,null,null,null,null,null,null,null,null,null,null,null,null,null,null,null,null,null,null,null,null,null,null,null,null,null,null,null,null,null,null,null,null,null,null,null,null,null,null,null,null,null,null,null,null,null,null,null,null,null,null,null,null,"dbRandomList"]
["mg01s.VariableX","Zmienna X",null,null,null,null,null,null,null,null,null,null,null,null,null,null,null,null,null,null,null,null,null,null,null,null,null,null,null,null,null,null,null,null,null,null,null,null,null,null,null,null,null,null,null,null,null,null,null,null,null,null,null,null,null,null,null,null,null,null,null,null,null,null,null,null,null,null,null,null,null,null,null,null,null,null,null,null,null,null,null,null,null,null,null,null,null,null,null,null,null,null,null,null,null,null,null,{"$f":"mg01s.RandUniform","v":"Jednostajny"},"dbUniform"]
["mg01s.Coeff","Współczynniki",null,null,null,null,null,null,null,null,null,null,null,null,null,null,null,null,null,null,null,null,null,null,null,null,null,null,null,null,null,null,null,null,null,null,null,null,null,null,null,null,null,null,null,null,null,null,null,null,null,null,null,null,null,null,null,null,null,null,null,null,null,null,null,null,null,null,null,null,null,null,null,null,null,null,null,null,null,null,null,null,null,null,null,null,null,null,null,null,null,null,null,null,null,null,null,{"$f":"mg01s.RandNormal","v":"Normalny"},"dbNormal"]
["mg01s.ResidChartTitle","Rozkład reszt",null,null,null,null,null,null,null,null,null,null,null,null,null,null,null,null,null,null,null,null,null,null,null,null,null,null,null,null,null,null,null,null,null,null,null,null,null,null,null,null,null,null,null,null,null,null,null,null,null,null,null,null,null,null,null,null,null,null,null,null,null,null,null,null,null,null,null,null,null,null,null,null,null,null,null,null,null,null,null,null,null,null,null,null,null,null,null,null,null,null,null,null,null,null,null,{"$f":"mg01s.RandBernoulli","v":"Bernoulliego"},"dbBernoulli"]
["mg01s.LineFitChartTitle","Rozkład linii dopasowanej",null,null,null,null,null,null,null,null,null,null,null,null,null,null,null,null,null,null,null,null,null,null,null,null,null,null,null,null,null,null,null,null,null,null,null,null,null,null,null,null,null,null,null,null,null,null,null,null,null,null,null,null,null,null,null,null,null,null,null,null,null,null,null,null,null,null,null,null,null,null,null,null,null,null,null,null,null,null,null,null,null,null,null,null,null,null,null,null,null,null,null,null,null,null,null,{"$f":"mg01s.RandBinomial","v":"Dwumianowy"},"dbBinomial"]
["mg01s.ProbChartTitle","Rozkład prawdopodobieństwa normalnego",null,null,null,null,null,null,null,null,null,null,null,null,null,null,null,null,null,null,null,null,null,null,null,null,null,null,null,null,null,null,null,null,null,null,null,null,null,null,null,null,null,null,null,null,null,null,null,null,null,null,null,null,null,null,null,null,null,null,null,null,null,null,null,null,null,null,null,null,null,null,null,null,null,null,null,null,null,null,null,null,null,null,null,null,null,null,null,null,null,null,null,null,null,null,null,{"$f":"mg01s.RandPoisson","v":"Poissona"},"dbPoisson"]
["mg01s.SampPercentile","Percentyl próbki",null,null,null,null,null,null,null,null,null,null,null,null,null,null,null,null,null,null,null,null,null,null,null,null,null,null,null,null,null,null,null,null,null,null,null,null,null,null,null,null,null,null,null,null,null,null,null,null,null,null,null,null,null,null,null,null,null,null,null,null,null,null,null,null,null,null,null,null,null,null,null,null,null,null,null,null,null,null,null,null,null,null,null,null,null,null,null,null,null,null,null,null,null,null,null,{"$f":"mg01s.RandPatterned","v":"Wg wzorca"},"dbPatterned"]
["mg01s.Sampling","Próbkowanie",null,null,null,null,null,null,null,null,null,null,null,null,null,null,null,null,null,null,null,null,null,null,null,null,null,null,null,null,null,null,null,null,null,null,null,null,null,null,null,null,null,null,null,null,null,null,null,null,null,null,null,null,null,null,null,null,null,null,null,null,null,null,null,null,null,null,null,null,null,null,null,null,null,null,null,null,null,null,null,null,null,null,null,null,null,null,null,null,null,null,null,null,null,null,null,{"$f":"mg01s.RandDiscrete","v":"Dyskretny"},"dbDiscrete"]
["misc.Calculating","Obliczanie"]
["misc.False","FALSE"]
["misc.True","TRUE"]
["errmsg.AllocMemErrCalc"," - Przydzielenie pamięci dla obliczeń nie jest możliwe."]
["errmsg.AlphaNumeric"," - Alfa musi być liczbą z zakresu 0 .. 1."]
["errmsg.BernoulliProbErr"," - Wartość prawdopodobieństwa Bernoulliego jest wymagana i musi być liczbą pomiędzy 0 .. 1."]
["errmsg.BinomialProbErr"," - Wartość prawdopodobieństwa dwumianowego jest wymagana i musi być liczbą pomiędzy 0 .. 1."]
["errmsg.BinomialTrialErr"," - Próby dwumianowe są wymagane i muszą stanowić liczbę całkowitą większą niż zero."]
["errmsg.BinRgHasNoData"," - Zakres zbioru nie może być pusty."]
["errmsg.BinRgMustBeRef"," - Zakres zbioru może być opuszczony.  Jeśli nie, zakres zbioru musi być adresem."]
["errmsg.BinRgNonNumeric"," - Zakres zbioru nie może zawierać danych nienumerycznych."]
["errmsg.BinInOverlap"," - Zakres zbioru i zakres wejściowy zachodzą na siebie."]
["errmsg.BinOutOverlap"," - Zakres zbioru i zakres wyjściowy zachodzą na siebie."]
["errmsg.BinsEmpty"," - Utworzenie wykresu na podstawie pustego zbioru nie jest możliwe."]
["errmsg.BoolChart"," - Opcja 'Wykres wyjściowy' musi stanowić wartość logiczną."]
["errmsg.BoolConstZero"," - Opcja 'Stała' musi stanowić wartość logiczną."]
["errmsg.BoolCumuPerc"," - Opcja 'Łączna wartość procentowa' musi stanowić wartość logiczną."]
["errmsg.BoolInverse"," - Opcja 'Inwersja' musi stanowić wartość logiczną."]
["errmsg.BoolLchart"," - Opcja 'Rozkład linii dopasowanej' musi stanowić wartość logiczną."]
["errmsg.BoolLbl"," - Opcja 'Tytuł' musi stanowić wartość logiczną."]
["errmsg.BoolPareto"," - Opcja 'Pareto' musi stanowić wartość logiczną."]
["errmsg.BoolPchart"," - Opcja 'Rozkład prawdopodobieństwa normalnego' musi stanowić wartość logiczną."]
["errmsg.BoolRchart"," - Opcja 'Rozkład reszt' musi stanowić wartość logiczną."]
["errmsg.BoolResid"," - Opcja 'Składniki resztowe' musi stanowić wartość logiczną."]
["errmsg.BoolStdErr"," - Opcja 'Błędy standardowe' musi stanowić wartość logiczną."]
["errmsg.BoolStdResid"," - Opcja 'Std. składniki resztowe' musi stanowić wartość logiczną."]
["errmsg.BoolSumStat"," - Opcja 'Statystyki podsumowujące' musi stanowić wartość logiczną."]
["errmsg.CannotConvert2Ref"," - Przekształcenie zakresu wejściowego/wyjściowego do poprawnego adresu nie jest możliwe!"]
["errmsg.CannotGetRelref"," - Utworzenie adresu względnego pomiędzy zakresami nie jest możliwe."]
["errmsg.ChartHideData"," - Część danych zostanie zakryta przez osadzony wykres (wykresy)."]
["errmsg.ChartOverEdge"," - Utworzenie wykresu nie jest możliwe, gdyż jego pozycja wypada poza granicami arkusza."]
["errmsg.ConfirmAbort"," - Przerywanie obliczeń: Wybierz OK, aby przerwać obliczenia, wybierz Anuluj, aby zakończyć obliczenia."]
["errmsg.ConfValuRg"," - Ufność musi być liczbą pomiędzy 0 i 100."]
["errmsg.CoerceValProbErr"," - Przekształcenie zakresu wejściowego do wartości i prawdopodobieństw nie jest możliwe."]
["errmsg.DampNumeric"," - Stała wygładzania musi być liczbą."]
["errmsg.DampPos"," - Stała wygładzania musi być liczbą dodatnią."]
["errmsg.DProbSumErr"," - Liczby w kolumnie rozkładu dyskretnego muszą dawać w sumie 1."]
["errmsg.DValProbReq"," - Określ dwukolumnowy zakres jako zakres wejściowy wartości i prawdopodobieństw rozkładu dyskretnego."]
["errmsg.DValProbRows"," - Określ zakres wejściowy zawierający więcej niż jedną wartość i więcej niż jedno prawdopodobieństwo."]
["errmsg.DValProbNonNumeric"," - Zakresy wartości i prawdopodobieństw rozkładu dyskretnego muszą zawierać tylko dane numeryczne i posiadać tę samą liczbę danych."]
["errmsg.DValProbOverlap"," - Zakres wartości i prawdopodobieństw rozkładu dyskretnego nie może zachodzić na zakres wyjściowy."]
["errmsg.ExpMinDataStdErr"," - Zakres wejściowy musi zawierać conajmniej 5 punktów danych, kiedy błędy standardowe są sprawdzane"]
["errmsg.ExtraRandArgs"," - Podano zbyt wiele argumentów.  Sprawdź składnię funkcji RANDOM()."]
["errmsg.ExtraColsInX"," - Zakres wejściowy X nie może zawierać więcej niż 16 zmiennych (kolumn)."]
["errmsg.FourierCount"," - Liczba wartości wejściowych musi stanowić potęgę liczby 2.  Na przykład: 2, 4, 8, 16,  32, 64, 128, ..."]
["errmsg.FourierCountMax"," - Liczba wartości wejściowych musi wynosić 4096 lub mniej."]
["errmsg.GrpByRC"," - Aby wskazać, jak uporządkowane są grupy danych, użyj liery \"K\" dla kolumn oraz \"W\" dla wierszy."]
["errmsg.InpRgAtLeast2Blks"," - Zakres wejściowy powinien zawierać dwa lub więcej bloków danych ułożonych wierszami lub kolumnami."]
["errmsg.InpRgMustBeRef"," - Zakres wejściowy musi być ciągłym obszarem."]
["errmsg.InpRgRequired"," - Nie podano zakresu wejściowego.  Wprowadź zakres wejściowy."]
["errmsg.InOutOverlap"," - Zakresy wejściowy i wyjściowy zachodzą na siebie!  Wprowadź je jeszcze raz."]
["errmsg.InpRgHasNoData"," - Zakres wejściowy musi zawierać przynajmniej jeden punkt danych."]
["errmsg.IntervalNumeric"," - Odstęp musi być wartością numeryczną."]
["errmsg.IntervalPos"," - Odstęp musi być wartością całkowitą dodatnią."]
["errmsg.IntervalVsData"," - Odstęp nie może być większy niż punkty danych."]
["errmsg.InvalidComplexInp"," - Zakres wejściowy zawiera niepoprawną liczbę zespoloną.   Liczba zespolona powinna mieć postać x+yi lub x+yj"]
["errmsg.InvalidComplexSign"," - Wszystkie liczby zespolone muszą posiadać ten sam symbol jednostki urojonej, tzn. \"i\" albo \"j\"."]
["errmsg.KLargePos"," - Wartość 'K-ta największa' musi być liczbą całkowitą dodatnią, większą od zera, i nie może przekraczać liczby punktów danych."]
["errmsg.KSmallPos"," - Wartość 'K-ta najmniejsza' musi być liczbą całkowitą dodatnią, większą od zera, i nie może przekraczać liczby punktów danych."]
["errmsg.LinestErr"," - Funkcja REGLINP() zwraca wartość błędu.  Sprawdź zakresy wejściowe."]
["errmsg.MeanDiffNumeric"," - Różnica średnich musi być wartością dodatnią."]
["errmsg.MissingArg"," - Funkcja wymaga więcej argumentów."]
["errmsg.MustBeSameSheet"," - Zakresy wejściowy i wyjściowy muszą znajdować się na tym samym arkuszu."]
["errmsg.MustBeSglArea"," - Zakres wejściowy/wyjściowy musi stanowić ciągły obszar komórek."]
["errmsg.MustBeSglRowCol"," - Zakres wejściowy musi być pojedynczym wierszem lub kolumną."]
["errmsg.MustHaveSameDataPts"," - Zakresy wejściowe muszą posiadać tę samą liczbę punktów danych."]
["errmsg.MVEXMinData"," - Zakres wejściowy musi posiadać przynajmniej 4 punkty danych."]
["errmsg.NA","#N/D!"]
["errmsg.NewBkErr"," - Utworzenie nowego skoroszytu nie jest możliwe. "]
["errmsg.NewShtErr"," - Utworzenie nowego arkusza nie jest możliwe.  Sprawdź ustawienia zabezpieczenia skoroszytu."]
["errmsg.NoMainDlg","  Odnalezienie głównego pola dialogu dodatku Analysis ToolPak nie jest możliwe. Skontaktuj się z obsługą techniczną.",null,null,null,null,null,null,null,null,null,null,null,null,null,null,null,null,null,null,null,null,null,null,null,null,null,null,null,null,null,null,null,null,null,null,null,null,null,null,null,null,null,null,null,null,null,null,null,null,null,null,null,null,null,null,null,null,null,null,null,null,null,null,null,null,null,null,null,null,true]
["errmsg.NoProcDlg","  Odnalezienie pola dialogu dla zaznaczonej procedury nie jest możliwe. Skontaktuj się z obsługą techniczną."]
["errmsg.NonNumericInpRg"," - Zakres wejściowy zawiera dane nienumeryczne."]
["errmsg.NormalMeanErr"," - Średnia rozkładu normalnego jest wymagana i musi być liczbą."]
["errmsg.NormalStdDevErr"," - Odchylenie standardowe rozkładu normalnego jest wymagane i musi być liczbą różną od zera."]
["errmsg.NumOfSampInvalid"," - Liczba próbek musi być liczbą całkowitą różną od zera."]
["errmsg.NumOfSampReq"," - Wprowadź liczbę próbek losowych."]
["errmsg.OffsetErr"," - Zaszły problemy przy ustalaniu adresu wejściowego/wyjściowego.",null,null,null,null,null,null,null,null,null,null,null,null,null,null,null,null,null,null,null,null,null,null,null,null,null,null,null,null,null,null,null,null,null,null,null,null,true,null,null,null,null,null,null,null,true,null,null,null,null,null,null,null,true,null,null,null,null,null,null,null,true,null,null,null,null,null,null,null,null,null,null,null,null,null,null,null,true,null,null,null,null,null,null,null,null,null,null,null,null,null,null,null,true]
["errmsg.OpenResrcErr"," - Otworzenie arkusza zasobów nie jest możliwe. ",null,null,null,null,null,null,null,null,null,null,null,null,null,null,null,null,null,null,null,null,null,null,null,null,null,null,null,null,true]
["errmsg.OutOptErr"," - Niepoprawna opcja wyjścia.",null,null,null,null,null,null,null,null,null,null,null,null,null,null,null,null,null,null,null,null,null,null,null,null,null,null,null,null,null,null,null,null,null,null,null,null,null,null,null,null,null,null,null,null,null,null,null,null,null,null,null,null,null,null,null,null,null,null,null,null,null,null,null,null,null,null,null,null,null,null,null,null,null,null,null,null,null,null,null,null,null,null,null,null,null,null,null,null,null,null,null,null,null,null,null,null,null,null,null,null,true]
["errmsg.OutRgMustBeRef"," - Zakres wyjściowy musi być poprawnym adresem."]
["errmsg.OutRgRequired"," - Nie podano zakresu wyjściowego.  Wprowadź zakres wyjściowy.",null,null,null,null,null,null,null,null,null,null,null,null,null,null,null,null,null,null,null,null,null,null,null,null,null,null,null,null,null,null,null,null,null,null,null,null,null,null,null,null,null,null,null,null,null,null,null,null,null,null,null,null,null,null,null,null,null,null,null,null,null,null,null,null,null,null,null,null,null,null,null,null,null,null,null,null,null,null,null,null,null,null,null,null,true]
["errmsg.OverEdgeErr"," - Szacowana tabela wyjściowa wykracza poza granice arkusza. Podaj inny adres.     "]
["errmsg.Overwrite"," - Zakres wyjściowy spowoduje zastąpienie istniejących danych.   Wybierz OK, aby zastąpić dane w zakresie:  "]
["errmsg.PatternedComb"," - Przy podanym kroku nie można osiągnąć wartości końcowej rozpoczynając od wartości początkowej wzorca."]
["errmsg.PatternedFrErr"," - Wartość początkowa wzorca jest wymagana i musi być liczbą."]
["errmsg.PatternedStepErr"," - Krok wzorca jest wymagany i musi być liczbą różną od zera."]
["errmsg.PatternedToErr"," - Wartość końcowa wzorca jest wymagana i musi być liczbą."]
["errmsg.PatternedRepNumErr"," - Liczba powtórzeń wartości wzorca jest wymagana i musi być całkowita i większa niż zero."]
["errmsg.PatternedRepSeqErr"," - Liczba powtórzeń sekwencji wzorca jest wymagana i musi być całkowita i większa niż zero."]
["errmsg.PeriodInvalid"," - Wartość okresu musi być liczbą całkowitą większą niż zero."]
["errmsg.PeriodReq"," - Wprowadź wartość okresu dla próbkowania."]
["errmsg.PeriodTooBig"," - Wartość okresu nie może przekraczać liczby wartości w zakresie wejściowym."]
["errmsg.PoissonLamdaErr"," - Wartość lambda dla rozkładu Poissona jest wymagana i musi być liczbą większą niż zero."]
["errmsg.RandDistTypeReq"," - Typ rozkładu jest wymagany. Wprowadzona wartość musi być liczbą całkowitą pomiędzy 1 i 7."]
["errmsg.RandNumMustBeInt"," - Liczba wartości losowych musi być całkowita i większa niż zero."]
["errmsg.RandValNotExist"," - Rozkład dyskretny: znalezienie odpowiadającej wartości dla losowo wybranego prawdopodobieństwa nie jest możliwe."]
["errmsg.RandVarMustBeInt"," - Liczba zmiennych musi być całkowita i większa niż zero."]
["errmsg.RequiredStatOpt"," - Wybierz przynajmniej jedną opcję statystyczną."]
["errmsg.RowsPerSampleRequired"," - Wartość wierszy w próbie jest wymagana.  Wprowadź tę wartość."]
["errmsg.RowsPerSampleInt"," - Wartość wierszy w próbie musi być liczbą całkowitą większą niż zero."]
["errmsg.SameRowsPerSample"," - Każda próbka musi zawierać tę samą liczbę wierszy."]
["errmsg.SameXYSamples"," - Zakres X  i zakres Y muszą posiadać tę samą liczbę wierszy (wartości próbki), nie biorąc pod uwagę tytułów."]
["errmsg.SampMethodInvalid"," - Niepoprawna metoda próbkowania.  Wprowadź \"O\" dla próbkowania okresowego lub \"L\" dla próbkowania losowego."]
["errmsg.SampMethodReq"," - Podanie metody próbkowania jest wymagane."]
["errmsg.SeedInvalid"," - Rozrzut musi być liczbą całkowitą pomiędzy 1..32767."]
["errmsg.SheetProtected"," - Zmiany zabezpieczonego arkusza nie są możliwe."]
["errmsg.UniformBoundErr"," - Ograniczenia w rozkładzie jednostajnym są wymagane i muszą być liczbami."]
["errmsg.VarPairedShape"," - OBYDWA zakresy zmiennych muszą być wierszami lub kolumnami."]
["errmsg.VarPairedSize"," - Zakresy zmiennych muszą posiadać tę samą liczbę punktów danych."]
["errmsg.VarRgTooSmall"," - Zakresy zmiennych muszą posiadać przynajmniej dwa punkty danych."]
["errmsg.VarRg1MustBeRef"," - Zakres zmiennej 1 musi stanowić ciągły obszar."]
["errmsg.VarRg1Req"," - Nie podano zakresu zmiennej 1."]
["errmsg.VarRg12Overlap"," - Zakresy zmiennej 1 i 2 nie mogą zachodzić na siebie."]
["errmsg.VarRg1OutOverlap"," - Zakres zmiennej 1 i zakres wyjściowy nie mogą zachodzić na siebie."]
["errmsg.VarRg2MustBeRef"," - Zakres zmiennej 2 musi stanowić ciągły obszar."]
["errmsg.VarRg2Req"," - Nie podano zakresu zmiennej 2."]
["errmsg.VarRg2OutOverlap"," - Zakres zmiennej 2 i zakres wyjściowy nie mogą zachodzić na siebie."]
["errmsg.WrongDistType"," - Typ rozkładu losowego powinien być liczbą pomiędzy 1 i 7."]
["errmsg.XOutOverlap"," - Zakres X i zakres wyjściowy będą zachodziły na siebie. Podaj inny zakres wyjściowy."]
["errmsg.XRgMustBeRef"," - Zakres wejściowy X musi stanowić ciągły obszar."]
["errmsg.XRgRequired"," - Nie podano zakresu wejściowego X."]
["errmsg.XRgsquare"," - Liczba wierszy i kolumn w zakresie X nie może być taka sama."]
["errmsg.XYOverlap"," - Zakres X i zakres Y nie mogą zachodzić na siebie."]
["errmsg.YOutOverlap"," - Zakres Y i zakres wyjściowy będą zachodziły na siebie. Podaj inny zakres wyjściowy."]
["errmsg.YRgMustBeRef"," - Zakres wejściowy Y musi stanowić ciągły obszar."]
["errmsg.YRgRequired"," - Nie podano zakresu wejściowego Y.  Wprowadź zakres wejściowy Y."]
["errmsg.ZtestVar1Numeric"," - Wariancja 1 musi być liczbą większą niż zero."]
["errmsg.ZtestVar2Numeric"," - Wariancja 2 musi być liczbą większą niż zero."]
[]
["errmsg.ActiveXError"," - Brak dostępu do formantów ActiveX.   Skontaktuj się z obsługą klienta w celu otrzymania pomocy."]
["errmsg.ShareCantChart"," - Nie można dodać arkusza do udostępnianego skoroszytu.  Kontynuować tworzenie tabeli wyjściowej?"]
["dbt.Percent","%"]
["dbt.Residu","Składniki resztowe"]
[]
["helpmsg.SharingRef","XLADDIN.CHM!5030146"]